Workbook

Sheet Capacity Estimator
B3: Testing Site Capacity Estimator
C7: Content Management Information | H7: Launch of DRC INSIGHT
C9: Using COS Service Device Content Hosting | D9: Yes - At the Site | N9: Average Time to Download Test Engine | O9: ='Capacity Estimator Calculations'!E44 -> 3.31 | P9: ='Capacity Estimator Calculations'!F44 -> Seconds
H11: Start of Test
C13: Testing Volume Information | N13: Average Time to Download a Fixed Form Testing Form | O13: ='Capacity Estimator Calculations'!E99 -> 1.75 | P13: ='Capacity Estimator Calculations'!F100 -> Seconds
C15: Students Testing with Fixed Form at the Same Time | D15: 150 | N15: Average Time to Download a CAT Form | O15: ='Capacity Estimator Calculations'!E102 -> 0 | P15: ='Capacity Estimator Calculations'!F102 -> Seconds
C17: Students Testing with CAT at the Same Time | D17: 0 | N17: Average Time to Download an Accommodated Testing Form | O17: ='Capacity Estimator Calculations'!E104 -> 0.9 | P17: ='Capacity Estimator Calculations'!F104 -> Seconds
C19: Accommodated Students Testing at the Same Time | D19: 20 | H19: During the Test
C21: Total Students Testing at the Same Time | D21: =SUM(D15:D20) -> 170 | N21: Average Wait Time Between Fixed Form Items | O21: ='Capacity Estimator Calculations'!E174 -> 0.2508300777 | P21: ='Capacity Estimator Calculations'!F174 -> Seconds
N23: Average Wait Time Between CAT Form Items | O23: ='Capacity Estimator Calculations'!E176 -> 0 | P23: ='Capacity Estimator Calculations'!F176 -> Seconds
C25: Estimated % of Students Starting the Test at the Nearly Same Time | D25: 0.5 | N25: Average Wait Time Between Accommodated Form Items | O25: ='Capacity Estimator Calculations'!E178 -> 0.5558300777 | P25: ='Capacity Estimator Calculations'!F178 -> Seconds
C27: Estimated % of Students Responding at the Nearly Same Time | D27: 0.1
C31: Network Information | H31: Good performance | L31: Marginal performance | P31: Poor Performance
C33: Internet Service Provider Connection Capacity | D33: 10000 | E33: (Mbps)
K34: Average Form Size per Test | M34: Average Size of Each Response | O34: Average Size of Next Item
C35: Wide Area Network (WAN) Connection Capacity | D35: 1000 | E35: (Mbps)
C37: Local Area Network (LAN) Connection Capacity | D37: 1000 | E37: (Mbps) | J37: Fixed Form Test | K37: 2 | L37: MB | M37: 5 | N37: KB | O37: 0 | P37: KB
C39: Testing Devices Average Connection Speed | D39: 250 | E39: (Mbps) | J39: Computer Adaptive Test | K39: 700 | L39: KB | M39: 5 | N39: KB | O39: 25 | P39: KB
C41: Percent of Bandwidth Available for Testing | D41: 0.8 | J41: TTS, VSL, HVA Accommodation | K41: 1 | L41: MB | M41: 5 | N41: KB | O41: 1.5 | P41: MB
C43: Internet Response Time/Latency | D43: 0.25 | E43: (secs) | J43: Test Engine | K43: 3.6 | L43: MB
C45: WAN Response Time/Latency | D45: 0.1 | E45: (secs)
C47: LAN Response Time/Latency | D47: 0.05 | E47: (secs) | J47: Average CAT Scoring Process | K47: 0.275 | L47: (secs)
B49: Important: The Capacity Estimator can only provide an estimate—it cannot factor in all possible variables and possible network traffic that can impact performance.
R50: ver. 4.0

Sheet Capacity Estimator Calculations (hidden)
E2: Content
E3: $AC7+(($AB7*$W$2)*($K$2/($Q$2*$T$2)))
E5: Response
E6: $AC120+(($AB120*$X$2)*($O$2/($R$2*$T$2)))
E8: Cat Response
E9: $AC7+(($AB7*$X$2)*(($O$2+$P$2)/($R$2*$T$2)))+($G$2)
E13: AC | F13: Avg. network Latency
E14: AB | F14: # of Students
E15: W | F15: Estimated % of Students Starting the Test at the Exact Same Time
E16: X | F16: Estimated % of Students Processing Responses At Once (Think Time)
E17: K | F17: WBTE Size (Mbits)
E18: O | F18: Response Size (Mbits)
E19: Q | F19: DownLoad Bandwidth (Mbps)
F20: LAN | G20: Yes - At the Site | I20: Location of Content
F21: WAN | G21: Yes - At the District
F22: ISP | G22: No
E23: R | F23: UpLoad Bandwidth (Mbps)
E24: G | F24: Avg CAT Scoring Process (secs)
E25: T | F25: Percent of Bandwidth Available for Testing
B26: TRUE | C26: Hide latency detail | E26: Links to data on other sheet
B27: FALSE | C27: Hide content detail | E27: Calculations
B28: Test Engine Calucation
B29: A | C29: Avg. Internet Latency | E29: ='Capacity Estimator'!$D$43 -> 0.25 | F29: Currently only delivered via the Internet
B30: B | C30: # of Students | E30: ='Capacity Estimator'!$D$21 -> 170
B31: C | C31: Estimated % of Students Starting the Test at the Nearly Same Time | E31: ='Capacity Estimator'!$D$25 -> 0.5
B32: D | C32: Estimated number of Students Starting the Test at the Nearly Same Time - (B*C) | E32: =E30*E31 -> 85
B33: E | C33: Test Engine Size | E33: ='Capacity Estimator'!$K$43 -> 3.6 | F33: ='Capacity Estimator'!$L$43 -> MB | G33: =IF(F33="MB",E33,IF(F33="GB",E33*1024,E33*0.000976562)) -> 3.6 | H33: MB
B34: F | C34: Test Engine Size (Mbits) - (E*8) | E34: =8*G33 -> 28.8 | F34: Mb
B35: G | C35: Size of all Test Engine Payload | E35: =E32*E34 -> 2448 | F35: Mb
B36: H | C36: Location of Content - Test Engine currently comes from DRC via the Intenet - force to No | E36: No | H36: ='Capacity Estimator'!$D$9 -> Yes - At the Site
B37: I | C37: LAN - Yes - At the Site | E37: ='Capacity Estimator'!$D$37 -> 1000 | F37: (Mbps)
C38: WAN - Yes - At the District | E38: ='Capacity Estimator'!$D$35 -> 1000 | F38: (Mbps)
C39: ISP - No | E39: ='Capacity Estimator'!$D$33 -> 10000 | F39: (Mbps)
C40: DownLoad Bandwidth (Mbps) | E40: =IF(E36="Yes - At the Site",E37,IF(E36="Yes - at the District", E38,MIN(E38,E39))) -> 1000 | F40: (Mbps)
B41: J | C41: Percent of Bandwidth Available for Testing | E41: ='Capacity Estimator'!$D$41 -> 0.8
B42: K | C42: Average Available Download Bandwidth (Mbps) - (I*J) | E42: =E40*E41 -> 800 | F42: (Mbps)
B43: L | C43: Avg Time to Download Test Engine - (A+(G/K)) | E43: =E29+(E35/E42) -> 3.31 | F43: Latency + (Total payload / Avg Available Download Bandwidth))
B44: M | C44: Average download time converted to Sec, Min or Hours | E44: =IF(E43>3600,E43/3600,IF(E43>60,E43/60,E43)) -> 3.31 | F44: =IF(E43>3600,I44,IF(E43>60,H44,G44)) -> Seconds | G44: Seconds | H44: Minutes | I44: Hours
B47: Type of testing as a percent of overall testing
D48: Form Content Percent | G48: Item Content Percent
C49: Total Fixed Form Testers | D49: ='Capacity Estimator'!$D$15 -> 150 | E49: =D49/$D$52 -> 0.8823529412 | G49: ='Capacity Estimator'!$D$15*0 -> 0 | H49: =G49/$G$52 -> 0
C50: Total CAT Form Testers | D50: ='Capacity Estimator'!$D$17 -> 0 | E50: =D50/$D$52 -> 0 | G50: ='Capacity Estimator'!$D$17 -> 0 | H50: =G50/$G$52 -> 0
C51: Total Accommodated Form Testers | D51: ='Capacity Estimator'!$D$19 -> 20 | E51: =D51/$D$52 -> 0.1176470588 | G51: ='Capacity Estimator'!$D$19 -> 20 | H51: =G51/$G$52 -> 1
C52: Total Testers | D52: =SUM(D49:D51) -> 170 | E52: =SUM(E49:E51) -> 1 | G52: =SUM(G49:G51) -> 20 | H52: =SUM(H49:H51) -> 1
B55: All Form Download Calucation
B56: Fixed Form Download Calucation
B57: A | C57: # of Students taking Fixed Form Test | E57: ='Capacity Estimator'!$D$15 -> 150
B58: B | C58: Estimated % of Students Starting the Test at the Nearly Same Time | E58: ='Capacity Estimator'!$D$25 -> 0.5
B59: C | C59: Estimated number of Students Starting the Test at the Nearly Same Time - (A*B) | E59: =E57*E58 -> 75
B60: D | C60: Form Size | E60: ='Capacity Estimator'!$K$37 -> 2 | F60: ='Capacity Estimator'!$L$37 -> MB | G60: =IF(F60="MB",E60,IF(F60="GB",E60*1024,E60*0.000976562)) -> 2 | H60: MB
B61: E | C61: Item Size (Mbits) - (D*8) | E61: =8*G60 -> 16 | F61: Mb
B62: F | C62: Size of all Fixed Forms Testing Form Content | E62: =E59*E61 -> 1200 | F62: Mb
B63: G | C63: Percent of all form content | E63: =E62/E84 -> 0.9375
B65: Computer Adaptive (CAT) Form Download Calucation
B66: A | C66: # of Students taking a Computer Adaptive Test | E66: ='Capacity Estimator'!$D$17 -> 0
B67: B | C67: Estimated % of Students Starting the Test at the Nearly Same Time | E67: ='Capacity Estimator'!$D$25 -> 0.5
B68: C | C68: Estimated number of Students Starting the Test at the Nearly Same Time - (A*B) | E68: =E66*E67 -> 0
B69: D | C69: Form Size | E69: ='Capacity Estimator'!$K$39 -> 700 | F69: ='Capacity Estimator'!$L$39 -> KB | G69: =IF(F69="MB",E69,IF(F69="GB",E69*1024,E69*0.000976562)) -> 0.6835934 | H69: MB
B70: E | C70: Item Size (Mbits) - (D*8) | E70: =8*G69 -> 5.4687472 | F70: Mb
B71: F | C71: Size of all CAT Form Content | E71: =E68*E70 -> 0 | F71: Mb
B72: G | C72: Percent of all form content | E72: =E71/E84 -> 0
B74: Accommodated Form Download Calucation
B75: A | C75: # of Students taking an Accommodated Test | E75: ='Capacity Estimator'!$D$19 -> 20
B76: B | C76: Estimated % of Students Starting the Test at the Nearly Same Time | E76: ='Capacity Estimator'!$D$25 -> 0.5
B77: C | C77: Estimated number of Students Starting the Test at the Nearly Same Time - (A*B) | E77: =E75*E76 -> 10
B78: D | C78: Form Size | E78: ='Capacity Estimator'!$K$41 -> 1 | F78: ='Capacity Estimator'!$L$41 -> MB | G78: =IF(F78="MB",E78,IF(F78="GB",E78*1024,E78*0.000976562)) -> 1 | H78: MB
B79: E | C79: Item Size (Mbits) - (D*8) | E79: =8*G78 -> 8 | F79: Mb
B80: F | C80: Size of all Accommodated Form Content | E80: =E77*E79 -> 80 | F80: Mb
B81: G | C81: Percent of all form content | E81: =E80/E84 -> 0.0625
B83: All Form Download Calucation
B84: G | C84: Total Form Size | E84: =E62+E71+E80 -> 1280 | F84: Mb
B85: H | C85: Location of Content - Using COS Service Device Content Hosting | E85: ='Capacity Estimator'!$D$9 -> Yes - At the Site
B86: I | C86: LAN - Yes - At the Site | E86: ='Capacity Estimator'!$D$47 -> 0.05 | F86: (Secs)
C87: WAN - Yes - At the District | E87: ='Capacity Estimator'!$D$45 -> 0.1 | F87: (Secs)
C88: ISP - No | E88: ='Capacity Estimator'!$D$43 -> 0.25 | F88: (Secs)
C89: Avg. Network Latency | E89: =IF(E85="Yes - At the Site",E86,IF(E85="Yes - at the District", E87,E88)) -> 0.05 | F89: (Secs)
B90: J | C90: LAN - Yes - At the Site | E90: ='Capacity Estimator'!$D$37 -> 1000 | F90: (Mbps)
C91: WAN - Yes - At the District | E91: ='Capacity Estimator'!$D$35 -> 1000 | F91: (Mbps)
C92: ISP - No | E92: ='Capacity Estimator'!$D$33 -> 10000 | F92: (Mbps)
C93: DownLoad Bandwidth (Mbps) | E93: =IF(E85="Yes - At the Site",E90,IF(E85="Yes - at the District", E91,MIN(E91,E92))) -> 1000 | F93: (Mbps)
B94: K | C94: Percent of Bandwidth Available for Testing | E94: ='Capacity Estimator'!$D$41 -> 0.8
B95: L | C95: Average Available Download Bandwidth (Mbps) - (J*K) | E95: =E93*E94 -> 800 | F95: (Mbps)
C96: Bandwidth (Mbps) Available for Fixed Form Downloads | D96: =$E$49 -> 0.8823529412 | E96: =E95*D96 -> 705.8823529 | F96: (Mbps)
C97: Bandwidth (Mbps) Available for CAT Form Downloads | D97: =$E$50 -> 0 | E97: =E95*D97 -> 0 | F97: (Mbps)
C98: Bandwidth (Mbps) Available for Accommodated Form Downloads | D98: =$E$51 -> 0.1176470588 | E98: =E95*D98 -> 94.11764706 | F98: (Mbps)
B99: M | C99: Avg Time to Download Fixed Form Content - (I+(G/L)) | E99: =IF(E57=0,0,E89+IFERROR((E62/E96),0)) -> 1.75
B100: N | C100: Average download time converted to Sec, Min or Hours | E100: =IF(E99>3600,E99/3600,IF(E99>60,E99/60,E99)) -> 1.75 | F100: =IF(E99>3600,I100,IF(E99>60,H100,G100)) -> Seconds | G100: Seconds | H100: Minutes | I100: Hours
B101: M | C101: Avg Time to Download CAT Form Content - (I+(G/L)) | E101: =IF(E66=0,0,E89+IFERROR((E71/E97),0)) -> 0
B102: N | C102: Average download time converted to Sec, Min or Hours | E102: =IF(E101>3600,E101/3600,IF(E101>60,E101/60,E101)) -> 0 | F102: =IF(E101>3600,I102,IF(E101>60,H102,G102)) -> Seconds | G102: Seconds | H102: Minutes | I102: Hours
B103: M | C103: Avg Time to Download Accommodated Form Content - (I+(G/L)) | E103: =IF(E75=0,0,E89+IFERROR((E80/E98),0)) -> 0.9
B104: N | C104: Average download time converted to Sec, Min or Hours | E104: =IF(E103>3600,E103/3600,IF(E103>60,E103/60,E103)) -> 0.9 | F104: =IF(E103>3600,I104,IF(E103>60,H104,G104)) -> Seconds | G104: Seconds | H104: Minutes | I104: Hours
B105: M | C105: Avg Time to Download Form Content - (I+(G/L)) | E105: =E89+(E84/E95) -> 1.65 | F105: Latency + (Total payload / Avg Available Download Bandwidth))
B106: N | C106: Average download time converted to Sec, Min or Hours | E106: =IF(E105>3600,E105/3600,IF(E105>60,E105/60,E105)) -> 1.65 | F106: =IF(E105>3600,I106,IF(E105>60,H106,G106)) -> Seconds | G106: Seconds | H106: Minutes | I106: Hours
B109: Response Time Between Items Calucation
B110: Fixed Form Item Download Calucation
B111: A | C111: # of Students taking Fixed Form Test | E111: ='Capacity Estimator'!$D$15 -> 150
B112: B | C112: Estimated % of Students Processing Responses At Once (Think Time) | E112: ='Capacity Estimator'!$D$27 -> 0.1
B113: C | C113: Estimated number of Students Starting the Test at the Nearly Same Time - (A*B) | E113: =E111*E112 -> 15
B114: D | C114: Item Size | E114: ='Capacity Estimator'!$O$37 -> 0 | F114: ='Capacity Estimator'!$P$37 -> KB | G114: =IF(F114="MB",E114,IF(F114="GB",E114*1024,E114*0.000976562)) -> 0 | H114: MB
B115: E | C115: Item Size (Mbits) - (D*8) | E115: =8*G114 -> 0 | F115: Mb
B116: F | C116: Size of all Fixed Forms Testing Item Content | E116: =E113*E115 -> 0 | F116: Mb
B117: G | C117: Percent of all Item content | E117: =E116/E150 -> 0
B118: H | C118: Response Size | E118: ='Capacity Estimator'!$M$37 -> 5 | F118: ='Capacity Estimator'!$N$37 -> KB | G118: =IF(F118="MB",E118,IF(F118="GB",E118*1024,E118*0.000976562)) -> 0.00488281 | H118: MB
B119: I | C119: Item Size (Mbits) - (H*8) | E119: =8*G118 -> 0.03906248 | F119: Mb
B120: J | C120: Size of all Responses | E120: =E113*E119 -> 0.5859372 | F120: Mb
B121: K | C121: Size of all Fixed Forms Testing Item Content and Responses | E121: =E116+E120 -> 0.5859372 | F121: Mb
B123: Computer Adaptive (CAT) Form item Download Calucation
B124: A | C124: # of Students taking a Computer Adaptive Test | E124: ='Capacity Estimator'!$D$17 -> 0
B125: B | C125: Estimated % of Students Processing Responses At Once (Think Time) | E125: ='Capacity Estimator'!$D$27 -> 0.1
B126: C | C126: Estimated number of Students Starting the Test at the Nearly Same Time - (A*B) | E126: =E124*E125 -> 0
B127: D | C127: Item Size | E127: ='Capacity Estimator'!$O$39 -> 25 | F127: ='Capacity Estimator'!$P$39 -> KB | G127: =IF(F127="MB",E127,IF(F127="GB",E127*1024,E127*0.000976562)) -> 0.02441405 | H127: MB
B128: E | C128: Item Size (Mbits) - (D*8) | E128: =8*G127 -> 0.1953124 | F128: Mb
B129: F | C129: Size of all CAT Item Content | E129: =E126*E128 -> 0 | F129: Mb
B130: G | C130: Percent of all form content | E130: =E129/E150 -> 0
B131: H | C131: Response Size | E131: ='Capacity Estimator'!$M$39 -> 5 | F131: ='Capacity Estimator'!$N$39 -> KB | G131: =IF(F131="MB",E131,IF(F131="GB",E131*1024,E131*0.000976562)) -> 0.00488281 | H131: MB
B132: I | C132: Item Size (Mbits) - (H*8) | E132: =8*G131 -> 0.03906248 | F132: Mb
B133: J | C133: Size of all Responses | E133: =E126*E132 -> 0 | F133: Mb
B134: K | C134: Size of all CAT Forms Testing Item Content and Responses | E134: =E129+E133 -> 0 | F134: Mb
B136: Accommodated Form Item Download Calucation
B137: A | C137: # of Students taking an Accommodated Test | E137: ='Capacity Estimator'!$D$19 -> 20
B138: B | C138: Estimated % of Students Processing Responses At Once (Think Time) | E138: ='Capacity Estimator'!$D$27 -> 0.1
B139: C | C139: Estimated number of Students Starting the Test at the Nearly Same Time - (A*B) | E139: =E137*E138 -> 2
B140: D | C140: Item Size | E140: ='Capacity Estimator'!$O$41 -> 1.5 | F140: ='Capacity Estimator'!$P$41 -> MB | G140: =IF(F140="MB",E140,IF(F140="GB",E140*1024,E140*0.000976562)) -> 1.5 | H140: MB
B141: E | C141: Item Size (Mbits) - (D*8) | E141: =8*G140 -> 12 | F141: Mb
B142: F | C142: Size of all Accommodated Item Content | E142: =E139*E141 -> 24 | F142: Mb
B143: G | C143: Percent of all form content | E143: =E142/E150 -> 0.9730757182
B144: H | C144: Response Size | E144: ='Capacity Estimator'!$M$41 -> 5 | F144: ='Capacity Estimator'!$N$41 -> KB | G144: =IF(F144="MB",E144,IF(F144="GB",E144*1024,E144*0.000976562)) -> 0.00488281 | H144: MB
B145: I | C145: Item Size (Mbits) - (H*8) | E145: =8*G144 -> 0.03906248 | F145: Mb
B146: J | C146: Size of all Responses | E146: =E139*E145 -> 0.07812496 | F146: Mb
B147: K | C147: Size of all Accommodated Forms Testing Item Content and Responses | E147: =E142+E146 -> 24.07812496 | F147: Mb
B149: All Response Time Between Items Calucation
B150: G | C150: Total Item Size and response size | E150: =E121+E134+E147 -> 24.66406216 | F150: Mb
B151: H | C151: Location of Content - Using COS Service Device Content Hosting | E151: ='Capacity Estimator'!$D$9 -> Yes - At the Site
B152: I | C152: LAN - Yes - At the Site | E152: ='Capacity Estimator'!$D$47 -> 0.05 | F152: (Secs)
C153: WAN - Yes - At the District | E153: ='Capacity Estimator'!$D$45 -> 0.1 | F153: (Secs)
C154: ISP - No | E154: ='Capacity Estimator'!$D$43 -> 0.25 | F154: (Secs)
C155: Avg. Network Latency | E155: =IF(E151="Yes - At the Site",E152,IF(E151="Yes - at the District", E153,E154)) -> 0.05 | F155: (Secs)
B156: J | C156: LAN - Yes - At the Site | E156: ='Capacity Estimator'!$D$37 -> 1000 | F156: (Mbps)
C157: WAN - Yes - At the District | E157: ='Capacity Estimator'!$D$35 -> 1000 | F157: (Mbps)
C158: ISP - No | E158: ='Capacity Estimator'!$D$33 -> 10000 | F158: (Mbps)
C159: DownLoad Bandwidth (Mbps) | E159: =IF(E151="Yes - At the Site",E156,IF(E151="Yes - at the District", E157,MIN(E157,E158))) -> 1000 | F159: (Mbps)
B160: K | C160: Percent of Bandwidth Available for Testing | E160: ='Capacity Estimator'!$D$41 -> 0.8
B161: L | C161: Average Available Download Bandwidth (Mbps) - (J*K) | E161: =E159*E160 -> 800 | F161: (Mbps)
B162: M | C162: Bandwidth (Mbps) Available for Fixed Form Item Downloads | D162: =$E$49 -> 0.8823529412 | E162: =E161*D162 -> 705.8823529 | F162: (Mbps)
C163: Bandwidth (Mbps) Available for CAT Item Downloads | D163: =$E$50 -> 0 | E163: =E161*D163 -> 0 | F163: (Mbps)
C164: Bandwidth (Mbps) Available for Accommodated Item Downloads | D164: =$E$51 -> 0.1176470588 | E164: =E161*D164 -> 94.11764706 | F164: (Mbps)
B165: N | C165: Internet Latency for Responses + Item Latency from Content source | E165: =E154+E155 -> 0.3
B166: P | C166: Avg Time to Download Fixed Form Item Content and process response - (N-I+(K/M)) | E166: =IF(E111=0,0,E165-E155+IFERROR((E121/E162),0)) -> 0.2508300777 | F166: No item content download required
C167: Avg Time to Download CAT Item Content and process response - (N+(K/M)) | E167: =IF(E124=0,0,E165+IFERROR((E134/E163),0)) -> 0
C168: Avg Time to Download Accommodated Item Content and process response - (N+(K/M)) | E168: =IF(E137=0,0,E165+IFERROR((E147/E164),0)) -> 0.5558300777
B169: Q | C169: Average time to process a Fixed Form score | E169: 0 | F169: (secs)
C170: Average time to process a CAT Form score | E170: =IF(E124=0,0,'Capacity Estimator'!$K$47) -> 0 | F170: ='Capacity Estimator'!$L$47 -> (secs)
C171: Average time to process an Accommodated Form score | E171: 0 | F171: (secs)
B173: P | C173: Average Wait Time Between Fixed Form Items - (N+O) | E173: =E166+E169 -> 0.2508300777
B174: Q | C174: Average download time converted to Sec, Min or Hours | E174: =IF(E173>3600,E173/3600,IF(E173>60,E173/60,E173)) -> 0.2508300777 | F174: =IF(E173>3600,I174,IF(E173>60,H174,G174)) -> Seconds | G174: Seconds | H174: Minutes | I174: Hours
B175: P | C175: Average Wait Time Between Fixed Form Items - (N+O) | E175: =E167+E170 -> 0
B176: Q | C176: Average download time converted to Sec, Min or Hours | E176: =IF(E175>3600,E175/3600,IF(E175>60,E175/60,E175)) -> 0 | F176: =IF(E175>3600,I176,IF(E175>60,H176,G176)) -> Seconds | G176: Seconds | H176: Minutes | I176: Hours
B177: P | C177: Average Wait Time Between Fixed Form Items - (N+O) | E177: =E168+E171 -> 0.5558300777
B178: Q | C178: Average download time converted to Sec, Min or Hours | E178: =IF(E177>3600,E177/3600,IF(E177>60,E177/60,E177)) -> 0.5558300777 | F178: =IF(E177>3600,I178,IF(E177>60,H178,G178)) -> Seconds | G178: Seconds | H178: Minutes | I178: Hours

Sheet Capacity Estimator Table (hidden)
A1: Test Engine Size | B1: ="Fixed Form Test Size (" & 'Capacity Estimator'!L37 & ")" -> Fixed Form Test Size (MB) | C1: ="Fixed Form Response Size (" & 'Capacity Estimator'!N37 & ")" -> Fixed Form Response Size (KB) | D1: ="CAT Form Test Size (" & 'Capacity Estimator'!L39 & ")" -> CAT Form Test Size (KB) | E1: ="Avg CAT Item Size (" & 'Capacity Estimator'!P39 & ")" -> Avg CAT Item Size (KB) | F1: ="CAT Form Response Size (" & 'Capacity Estimator'!N39 & ")" -> CAT Form Response Size (KB) | G1: Avg CAT Scoring Process (secs) | H1: ="Accommodation Form Test Size (" & 'Capacity Estimator'!P39 & ")" -> Accommodation Form Test Size (KB) | I1: ="Avg Accommodation Item Size (" & 'Capacity Estimator'!T35 & ")" -> Avg Accommodation Item Size () | J1: ="Accommodation Form Response Size (" & 'Capacity Estimator'!R35 & ")" -> Accommodation Form Response Size () | K1: WBTE Size (Mbits) | L1: Fixed Form Test Size (Mbits) | M1: CAT Form Test Size (Mbits) | N1: Total Download of WBTE & Form (Mbits) | O1: ` | P1: ="Avg CAT Item Size (Mbits)" -> Avg CAT Item Size (Mbits) | Q1: DownLoad Bandwidth (Mbps) | R1: UpLoad Bandwidth (Mbps) | S1: Local Area Network (LAN) Connection Speed (Mbps) | T1: Percent of Bandwidth Available for Testing | U1: TSM Download Response Time Factor | V1: TSM Upload Response Time Factor | W1: Estimated % of Students Starting the Test at the Exact Same Time | X1: Estimated % of Students Processing Responses At Once (Think Time) | Y1: Internet Response Time/Latency (secs) | Z1: WAN Response Time/Latency (secs) | AA1: LAN Response Time/Latency (secs) | AB1: # of Students | AC1: Avg. Internet Latency | AD1: Avg LAN Latency | AF1: ="Avg Time to Download Test Engine" -> Avg Time to Download Test Engine | AI1: ="Avg Fixed Form Download without Content Hosting" -> Avg Fixed Form Download without Content Hosting | AK1: ="Avg Fixed Form Download with Content Hosting" -> Avg Fixed Form Download with Content Hosting | AM1: ="Avg Fixed Form Test and Test Engine Download Time with Content Hosting" -> Avg Fixed Form Test and Test Engine Download Time with Content Hosting | AP1: ="Avg Wait Between Fixed Form Items" -> Avg Wait Between Fixed Form Items | AR1: ="Avg Wait Time Between Items with Response Caching " -> Avg Wait Time Between Items with Response Caching | AT1: Item Latency w/o Response Caching | AW1: ="Avg CAT Form Download without Content Hosting" -> Avg CAT Form Download without Content Hosting | AY1: ="Avg CAT Form Download with Content Hosting" -> Avg CAT Form Download with Content Hosting | BB1: ="Avg Wait Between CAT Items" -> Avg Wait Between CAT Items | BE1: ="Average Time to Download WBTE without Hosting" -> Average Time to Download WBTE without Hosting | BG1: ="Max Wait Time without TSM (" & 'Capacity Estimator'!$AL$93 & " MB Test)" -> Max Wait Time without TSM ( MB Test) | BH1: ="Average Wait Time without TSM (" & 'Capacity Estimator'!$AL$93 & " MB Test)" -> Average Wait Time without TSM ( MB Test) | BI1: ="Max Wait Time with TSM (" & 'Capacity Estimator'!$AL$93 & " MB Test)" -> Max Wait Time with TSM ( MB Test) | BJ1: ="Average Wait Time with TSM (" & 'Capacity Estimator'!$AL$93 & " MB Test)" -> Average Wait Time with TSM ( MB Test)
A2: ='Capacity Estimator'!K43 -> 3.6 | B2: ='Capacity Estimator'!K37 -> 2 | C2: ='Capacity Estimator'!M37 -> 5 | D2: ='Capacity Estimator'!K39 -> 700 | E2: ='Capacity Estimator'!O39 -> 25 | F2: ='Capacity Estimator'!M39 -> 5 | G2: 0.275 | H2: ='Capacity Estimator'!K41 -> 1 | I2: ='Capacity Estimator'!O41 -> 1.5 | J2: ='Capacity Estimator'!M41 -> 5 | K2: =8*A5 -> 28.8 | L2: =(8*B5) -> 16 | M2: =(8*D5) -> 5.4687472 | N2: =L2+(K2*0) -> 16 | O2: =8*C5 -> 0.03906248 | P2: =E5 -> 0.02441405 | Q2: =MIN('Capacity Estimator'!D33, 'Capacity Estimator'!D35) -> 1000 | R2: =MIN('Capacity Estimator'!D33, 'Capacity Estimator'!D35) -> 1000 | S2: ='Capacity Estimator'!D35 -> 1000 | T2: ='Capacity Estimator'!D41/100 -> 0.008 | U2: 1 | V2: 1 | W2: ='Capacity Estimator'!D25 -> 0.5 | X2: ='Capacity Estimator'!D27 -> 0.1 | Y2: ='Capacity Estimator'!D43 -> 0.25 | Z2: ='Capacity Estimator'!D45 -> 0.1 | AA2: ='Capacity Estimator'!D47 -> 0.05 | AB2: 0 | AC2: 0 | AD2: 0 | AG2: =AC3 -> 0.25 | AJ2: =AC3 -> 0.25 | AK2: =$AB2*$L$2/$Q$2/$V$2 -> 0 | AM2: =AG2+AK2 -> 0.25 | AP2: 0.05 | AR2: 0 | AT2: 0 | AX2: =AC3 -> 0.25 | AY2: =$AB2*$L$2/$Q$2/$V$2 -> 0 | BB2: =(BB3+BC6)*0 -> 0
A3: ='Capacity Estimator'!L43 -> MB | B3: ='Capacity Estimator'!L37 -> MB | C3: ='Capacity Estimator'!N37 -> KB | D3: ='Capacity Estimator'!L39 -> KB | E3: ='Capacity Estimator'!P39 -> KB | F3: ='Capacity Estimator'!N39 -> KB | H3: ='Capacity Estimator'!L41 -> MB | I3: ='Capacity Estimator'!P41 -> MB | J3: ='Capacity Estimator'!N41 -> KB | Y3: 0 | Z3: 0 | AA3: 0 | AB3: =AB2+1 -> 1 | AC3: =IF($AB3<$Y$4,$Y$2,IF($Y$2-(AB3*$Y$3)>0,$Y$2-(AB3*$Y$3),0)) -> 0.25 | AD3: =IF($AB3<$AA$4,$AA$2,IF($AA$2-($AB3*$AA$3)>0,$AA$2-($AB3*$AA$3),0)) -> 0.05 | AF3: =$AC3+(($AB3*$W$2)*$K$2/($Q$2*$T$2)) -> 2.05 | AG3: =AG2-AF3 -> -1.8 | AI3: =$AC3+(($AB3*$W$2)*$L$2/($Q$2*$T$2)) -> 1.25 | AJ3: =AJ2-AI3 -> -1 | AK3: =$AD3+(($AB3*$W$2)*$L$2/($S$2*$T$2)*$U$2) -> 1.05 | AL3: =AK2-AK3 -> -1.05 | AM3: =AF3+AK3 -> 3.1 | AN3: =AM2-AM3 -> -2.85 | AP3: =$AC3+(($AB3*$X$2)*($O$2/($R$2*$T$2))) -> 0.250488281 | AQ3: =AP2-AP3 -> -0.200488281 | AR3: =$AD3+(($AB3*$X$2)*$O$2/($S$2*$T$2)*$V$2) -> 0.050488281 | AS3: =AR2-AR3 -> -0.050488281 | AT3: =AD3 -> 0.05 | AU3: =AT2-AT3 -> -0.05 | AW3: =$AC3+(($AB3*$W$2)*$M$2/($Q$2*$T$2)) -> 0.5917967 | AX3: =AX2-AW3 -> -0.3417967 | AY3: =$AD3+(($AB3*$W$2)*$M$2/($S$2*$T$2)*$U$2) -> 0.3917967 | AZ3: =AY2-AY3 -> -0.3917967 | BB3: =$AC3+(($AB3*$X$2)*(($O$2+$P$2)/($R$2*$T$2)))+($G$2*1) -> 0.5257934566 | BC3: =BB2-BB3 -> -0.5257934566
U4: 0.4 | V4: 0.4 | Y4: 0 | Z4: 0 | AA4: 0 | AB4: 2 | AC4: =IF($AB4<$Y$4,$Y$2,(IF(($AC3-$Y$3)>0,$AC3-$Y$3,0))) -> 0.25 | AD4: =IF($AB4<$AA$4,$AA$2,(IF(($AD3-$AA$3)>0,$AD3-$AA$3,0))) -> 0.05 | AF4: =$AC4+(($AB4*$W$2)*$K$2/($Q$2*$T$2)) -> 3.85 | AG4: =AF3-AF4 -> -1.8 | AI4: =$AC4+(($AB4*$W$2)*$L$2/($Q$2*$T$2)) -> 2.25 | AJ4: =AI3-AI4 -> -1 | AK4: 2.05 | AL4: =AK3-AK4 -> -1 | AM4: 5.9 | AN4: =AM3-AM4 -> -2.8 | AP4: =$AC4+(($AB4*$X$2)*($O$2/($R$2*$T$2))) -> 0.250976562 | AQ4: =AP3-AP4 -> -0.000488281 | AR4: 0.050976562 | AS4: =AR3-AR4 -> -0.000488281 | AT4: =AD4 -> 0.05 | AU4: =AT3-AT4 -> 0 | AW4: =$AC4+(($AB4*$W$2)*$M$2/($Q$2*$T$2)) -> 0.9335934 | AX4: =AW3-AW4 -> -0.3417967 | AY4: =$AD4+(($AB4*$W$2)*$M$2/($S$2*$T$2)*$U$2) -> 0.7335934 | AZ4: =AY3-AY4 -> -0.3417967 | BB4: =$AC4+(($AB4*$X$2)*(($O$2+$P$2)/($R$2*$T$2)))+($G$2*1) -> 0.5265869133 | BC4: =BB3-BB4 -> -0.000793456625
A5: =IF(A3="MB",A2,IF(A3="GB",A2*1024,A2*0.000976562)) -> 3.6 | B5: 2 | C5: 0.00488281 | D5: 0.6835934 | E5: 0.02441405 | F5: 0.00488281 | H5: =IF(H3="MB",H2,IF(H3="GB",H2*1024,H2*0.000976562)) -> 1 | I5: =IF(I3="MB",I2,IF(I3="GB",I2*1024,I2*0.000976562)) -> 1.5 | J5: =IF(J3="MB",J2,IF(J3="GB",J2*1024,J2*0.000976562)) -> 0.00488281 | O5: Size to use without Hosting (Download both WBTE Engine & Form from DRC) | AB5: 3 | AC5: =IF($AB5<$Y$4,$Y$2,(IF(($AC4-$Y$3)>0,$AC4-$Y$3,0))) -> 0.25 | AD5: =IF($AB5<$AA$4,$AA$2,(IF(($AD4-$AA$3)>0,$AD4-$AA$3,0))) -> 0.05 | AF5: =$AC5+(($AB5*$W$2)*$K$2/($Q$2*$T$2)) -> 5.65 | AG5: -1.8 | AI5: =$AC5+(($AB5*$W$2)*$L$2/($Q$2*$T$2)) -> 3.25 | AJ5: =AI4-AI5 -> -1 | AK5: 3.05 | AL5: -1 | AM5: 8.7 | AN5: -2.8 | AP5: 0.251464843 | AQ5: =AP4-AP5 -> -0.000488281 | AR5: 0.051464843 | AS5: -0.000488281 | AT5: 0.05 | AU5: 0 | AW5: =$AC5+(($AB5*$W$2)*$M$2/($Q$2*$T$2)) -> 1.2753901 | AX5: =AW4-AW5 -> -0.3417967 | AY5: 1.0753901 | AZ5: =AY4-AY5 -> -0.3417967 | BB5: 0.5273803699 | BC5: =BB4-BB5 -> -0.000793456625
A6: MB | B6: MB | C6: MB | D6: MB | E6: MB | F6: MB | H6: MB | I6: MB | J6: MB | N6: Use with Content Hosting for CAT form download from TSM | AB6: 4 | AC6: 0.25 | AD6: 0.05 | AF6: 7.45 | AG6: -1.8 | AI6: 4.25 | AJ6: -1 | AK6: 4.05 | AL6: -1 | AM6: 11.5 | AN6: -2.8 | AP6: 0.251953124 | AQ6: -0.000488281 | AR6: 0.051953124 | AS6: -0.000488281 | AT6: 0.05 | AU6: 0 | AW6: 1.6171868 | AX6: -0.3417967 | AY6: 1.4171868 | AZ6: -0.3417967 | BB6: 0.5281738265 | BC6: -0.000793456625
M7: Use with Content Hosting for Fixed form download from TSM | Y7: =Y2*1000 -> 250 | Z7: =Z2*1000 -> 100 | AA7: =AA2*1000 -> 50 | AB7: 5 | AC7: 0.25 | AD7: 0.05 | AF7: 9.25 | AG7: -1.8 | AI7: 5.25 | AJ7: -1 | AK7: 5.05 | AL7: -1 | AM7: 14.3 | AN7: -2.8 | AP7: 0.252441405 | AQ7: -0.000488281 | AR7: 0.052441405 | AS7: -0.000488281 | AT7: 0.05 | AU7: 0 | AW7: 1.9589835 | AX7: -0.3417967 | AY7: 1.7589835 | AZ7: -0.3417967 | BB7: 0.5289672831 | BC7: -0.000793456625
L8: Use with Hosting for WBTE Engine download from DRC | Y8: Milliseconds | Z8: Milliseconds | AA8: Milliseconds | AB8: 6 | AC8: 0.25 | AD8: 0.05 | AF8: 11.05 | AG8: -1.8 | AI8: 6.25 | AJ8: -1 | AK8: 6.05 | AL8: -1 | AM8: 17.1 | AN8: -2.8 | AP8: 0.252929686 | AQ8: -0.000488281 | AR8: 0.052929686 | AS8: -0.000488281 | AT8: 0.05 | AU8: 0 | AW8: 2.3007802 | AX8: -0.3417967 | AY8: 2.1007802 | AZ8: -0.3417967 | BB8: 0.5297607398 | BC8: -0.000793456625
A9: T1 | B9: 1.544 | C9: Mbits/sec | F9: Mbits/sec | J9: Mbits/sec | AB9: 7 | AC9: 0.25 | AD9: 0.05 | AF9: 12.85 | AG9: -1.8 | AI9: 7.25 | AJ9: -1 | AK9: 7.05 | AL9: -1 | AM9: 19.9 | AN9: -2.8 | AP9: 0.253417967 | AQ9: -0.000488281 | AR9: 0.053417967 | AS9: -0.000488281 | AT9: 0.05 | AU9: 0 | AW9: 2.6425769 | AX9: -0.3417967 | AY9: 2.4425769 | AZ9: -0.3417967 | BB9: 0.5305541964 | BC9: -0.000793456625
A10: T2 | B10: 6.312 | C10: Mbits/sec | F10: Mbits/sec | J10: Mbits/sec | S10: Minimum of upload Speed and LAN Speed | AB10: 8 | AC10: 0.25 | AD10: 0.05 | AF10: 14.65 | AG10: -1.8 | AI10: 8.25 | AJ10: -1 | AK10: 8.05 | AL10: -1 | AM10: 22.7 | AN10: -2.8 | AP10: 0.253906248 | AQ10: -0.000488281 | AR10: =$AD10+(($AB10*$X$2)*$O$2/($S$2*$T$2)*$V$2) -> 0.053906248 | AS10: -0.000488281 | AT10: 0.05 | AU10: 0 | AW10: 2.9843736 | AX10: -0.3417967 | AY10: 2.7843736 | AZ10: -0.3417967 | BB10: 0.531347653 | BC10: -0.000793456625
A11: T3 | B11: 44.736 | C11: Mbits/sec | F11: Mbits/sec | J11: Mbits/sec | AB11: 9 | AC11: 0.25 | AD11: 0.05 | AF11: 16.45 | AG11: -1.8 | AI11: 9.25 | AJ11: -1 | AK11: 9.05 | AL11: -1 | AM11: 25.5 | AN11: -2.8 | AP11: 0.254394529 | AQ11: -0.000488281 | AR11: 0.054394529 | AS11: -0.000488281 | AT11: 0.05 | AU11: 0 | AW11: 3.3261703 | AX11: -0.3417967 | AY11: 3.1261703 | AZ11: -0.3417967 | BB11: 0.5321411096 | BC11: -0.000793456625
R12: Minimum of Download Speed and LAN Speed | AB12: 10 | AC12: 0.25 | AD12: 0.05 | AF12: 18.25 | AG12: -1.8 | AI12: 10.25 | AJ12: -1 | AK12: 10.05 | AL12: -1 | AM12: 28.3 | AN12: -2.8 | AP12: 0.25488281 | AQ12: -0.000488281 | AR12: 0.05488281 | AS12: -0.000488281 | AT12: 0.05 | AU12: 0 | AW12: 3.667967 | AX12: -0.3417967 | AY12: 3.467967 | AZ12: -0.3417967 | BB12: 0.5329345663 | BC12: -0.000793456625
AB13: 11 | AC13: 0.25 | AD13: 0.05 | AF13: 20.05 | AG13: -1.8 | AI13: 11.25 | AJ13: -1 | AK13: 11.05 | AL13: -1 | AM13: 31.1 | AN13: -2.8 | AP13: 0.255371091 | AQ13: -0.000488281 | AR13: 0.055371091 | AS13: -0.000488281 | AT13: 0.05 | AU13: 0 | AW13: 4.0097637 | AX13: -0.3417967 | AY13: 3.8097637 | AZ13: -0.3417967 | BB13: 0.5337280229 | BC13: -0.000793456625
AB14: 12 | AC14: 0.25 | AD14: 0.05 | AF14: 21.85 | AG14: -1.8 | AI14: 12.25 | AJ14: -1 | AK14: 12.05 | AL14: -1 | AM14: 33.9 | AN14: -2.8 | AP14: 0.255859372 | AQ14: -0.000488281 | AR14: 0.055859372 | AS14: -0.000488281 | AT14: 0.05 | AU14: 0 | AW14: 4.3515604 | AX14: -0.3417967 | AY14: 4.1515604 | AZ14: -0.3417967 | BB14: 0.5345214795 | BC14: -0.000793456625
AB15: 13 | AC15: 0.25 | AD15: 0.05 | AF15: 23.65 | AG15: -1.8 | AI15: 13.25 | AJ15: -1 | AK15: 13.05 | AL15: -1 | AM15: 36.7 | AN15: -2.8 | AP15: 0.256347653 | AQ15: -0.000488281 | AR15: 0.056347653 | AS15: -0.000488281 | AT15: 0.05 | AU15: 0 | AW15: 4.6933571 | AX15: -0.3417967 | AY15: 4.4933571 | AZ15: -0.3417967 | BB15: 0.5353149361 | BC15: -0.000793456625
AB16: 14 | AC16: 0.25 | AD16: 0.05 | AF16: 25.45 | AG16: -1.8 | AI16: 14.25 | AJ16: -1 | AK16: 14.05 | AL16: -1 | AM16: 39.5 | AN16: -2.8 | AP16: 0.256835934 | AQ16: -0.000488281 | AR16: 0.056835934 | AS16: -0.000488281 | AT16: 0.05 | AU16: 0 | AW16: 5.0351538 | AX16: -0.3417967 | AY16: 4.8351538 | AZ16: -0.3417967 | BB16: 0.5361083927 | BC16: -0.000793456625
AB17: 15 | AC17: 0.25 | AD17: 0.05 | AF17: 27.25 | AG17: -1.8 | AI17: 15.25 | AJ17: -1 | AK17: 15.05 | AL17: -1 | AM17: 42.3 | AN17: -2.8 | AP17: 0.257324215 | AQ17: -0.000488281 | AR17: 0.057324215 | AS17: -0.000488281 | AT17: 0.05 | AU17: 0 | AW17: 5.3769505 | AX17: -0.3417967 | AY17: 5.1769505 | AZ17: -0.3417967 | BB17: 0.5369018494 | BC17: -0.000793456625
AB18: 16 | AC18: 0.25 | AD18: 0.05 | AF18: 29.05 | AG18: -1.8 | AI18: 16.25 | AJ18: -1 | AK18: 16.05 | AL18: -1 | AM18: 45.1 | AN18: -2.8 | AP18: 0.257812496 | AQ18: -0.000488281 | AR18: 0.057812496 | AS18: -0.000488281 | AT18: 0.05 | AU18: 0 | AW18: 5.7187472 | AX18: -0.3417967 | AY18: 5.5187472 | AZ18: -0.3417967 | BB18: 0.537695306 | BC18: -0.000793456625
AB19: 17 | AC19: 0.25 | AD19: 0.05 | AF19: 30.85 | AG19: -1.8 | AI19: 17.25 | AJ19: -1 | AK19: 17.05 | AL19: -1 | AM19: 47.9 | AN19: -2.8 | AP19: 0.258300777 | AQ19: -0.000488281 | AR19: 0.058300777 | AS19: -0.000488281 | AT19: 0.05 | AU19: 0 | AW19: 6.0605439 | AX19: -0.3417967 | AY19: 5.8605439 | AZ19: -0.3417967 | BB19: 0.5384887626 | BC19: -0.000793456625
AB20: 18 | AC20: 0.25 | AD20: 0.05 | AF20: 32.65 | AG20: -1.8 | AI20: 18.25 | AJ20: -1 | AK20: 18.05 | AL20: -1 | AM20: 50.7 | AN20: -2.8 | AP20: 0.258789058 | AQ20: -0.000488281 | AR20: 0.058789058 | AS20: -0.000488281 | AT20: 0.05 | AU20: 0 | AW20: 6.4023406 | AX20: -0.3417967 | AY20: 6.2023406 | AZ20: -0.3417967 | BB20: 0.5392822192 | BC20: -0.000793456625
AB21: 19 | AC21: 0.25 | AD21: 0.05 | AF21: 34.45 | AG21: -1.8 | AI21: 19.25 | AJ21: -1 | AK21: 19.05 | AL21: -1 | AM21: 53.5 | AN21: -2.8 | AP21: 0.259277339 | AQ21: -0.000488281 | AR21: 0.059277339 | AS21: -0.000488281 | AT21: 0.05 | AU21: 0 | AW21: 6.7441373 | AX21: -0.3417967 | AY21: 6.5441373 | AZ21: -0.3417967 | BB21: 0.5400756759 | BC21: -0.000793456625
AB22: 20 | AC22: 0.25 | AD22: 0.05 | AF22: 36.25 | AG22: -1.8 | AI22: 20.25 | AJ22: -1 | AK22: 20.05 | AL22: -1 | AM22: 56.3 | AN22: -2.8 | AP22: 0.25976562 | AQ22: -0.000488281 | AR22: 0.05976562 | AS22: -0.000488281 | AT22: 0.05 | AU22: 0 | AW22: 7.085934 | AX22: -0.3417967 | AY22: 6.885934 | AZ22: -0.3417967 | BB22: 0.5408691325 | BC22: -0.000793456625
AB23: 21 | AC23: 0.25 | AD23: 0.05 | AF23: 38.05 | AG23: -1.8 | AI23: 21.25 | AJ23: -1 | AK23: 21.05 | AL23: -1 | AM23: 59.1 | AN23: -2.8 | AP23: 0.260253901 | AQ23: -0.000488281 | AR23: 0.060253901 | AS23: -0.000488281 | AT23: 0.05 | AU23: 0 | AW23: 7.4277307 | AX23: -0.3417967 | AY23: 7.2277307 | AZ23: -0.3417967 | BB23: 0.5416625891 | BC23: -0.000793456625
AB24: 22 | AC24: 0.25 | AD24: 0.05 | AF24: 39.85 | AG24: -1.8 | AI24: 22.25 | AJ24: -1 | AK24: 22.05 | AL24: -1 | AM24: 61.9 | AN24: -2.8 | AP24: 0.260742182 | AQ24: -0.000488281 | AR24: 0.060742182 | AS24: -0.000488281 | AT24: 0.05 | AU24: 0 | AW24: 7.7695274 | AX24: -0.3417967 | AY24: 7.5695274 | AZ24: -0.3417967 | BB24: 0.5424560458 | BC24: -0.000793456625
AB25: 23 | AC25: 0.25 | AD25: 0.05 | AF25: 41.65 | AG25: -1.8 | AI25: 23.25 | AJ25: -1 | AK25: 23.05 | AL25: -1 | AM25: 64.7 | AN25: -2.8 | AP25: 0.261230463 | AQ25: -0.000488281 | AR25: 0.061230463 | AS25: -0.000488281 | AT25: 0.05 | AU25: 0 | AW25: 8.1113241 | AX25: -0.3417967 | AY25: 7.9113241 | AZ25: -0.3417967 | BB25: 0.5432495024 | BC25: -0.000793456625
AB26: 24 | AC26: 0.25 | AD26: 0.05 | AF26: 43.45 | AG26: -1.8 | AI26: 24.25 | AJ26: -1 | AK26: 24.05 | AL26: -1 | AM26: 67.5 | AN26: -2.8 | AP26: 0.261718744 | AQ26: -0.000488281 | AR26: 0.061718744 | AS26: -0.000488281 | AT26: 0.05 | AU26: 0 | AW26: 8.4531208 | AX26: -0.3417967 | AY26: 8.2531208 | AZ26: -0.3417967 | BB26: 0.544042959 | BC26: -0.000793456625
AB27: 25 | AC27: 0.25 | AD27: 0.05 | AF27: 45.25 | AG27: -1.8 | AI27: 25.25 | AJ27: -1 | AK27: 25.05 | AL27: -1 | AM27: 70.3 | AN27: -2.8 | AP27: 0.262207025 | AQ27: -0.000488281 | AR27: 0.062207025 | AS27: -0.000488281 | AT27: 0.05 | AU27: 0 | AW27: 8.7949175 | AX27: -0.3417967 | AY27: 8.5949175 | AZ27: -0.3417967 | BB27: 0.5448364156 | BC27: -0.000793456625
AB28: 26 | AC28: 0.25 | AD28: 0.05 | AF28: 47.05 | AG28: -1.8 | AI28: 26.25 | AJ28: -1 | AK28: 26.05 | AL28: -1 | AM28: 73.1 | AN28: -2.8 | AP28: 0.262695306 | AQ28: -0.000488281 | AR28: 0.062695306 | AS28: -0.000488281 | AT28: 0.05 | AU28: 0 | AW28: 9.1367142 | AX28: -0.3417967 | AY28: 8.9367142 | AZ28: -0.3417967 | BB28: 0.5456298723 | BC28: -0.000793456625
AB29: 27 | AC29: 0.25 | AD29: 0.05 | AF29: 48.85 | AG29: -1.8 | AI29: 27.25 | AJ29: -1 | AK29: 27.05 | AL29: -1 | AM29: 75.9 | AN29: -2.8 | AP29: 0.263183587 | AQ29: -0.000488281 | AR29: 0.063183587 | AS29: -0.000488281 | AT29: 0.05 | AU29: 0 | AW29: 9.4785109 | AX29: -0.3417967 | AY29: 9.2785109 | AZ29: -0.3417967 | BB29: 0.5464233289 | BC29: -0.000793456625
AB30: 28 | AC30: 0.25 | AD30: 0.05 | AF30: 50.65 | AG30: -1.8 | AI30: 28.25 | AJ30: -1 | AK30: 28.05 | AL30: -1 | AM30: 78.7 | AN30: -2.8 | AP30: 0.263671868 | AQ30: -0.000488281 | AR30: 0.063671868 | AS30: -0.000488281 | AT30: 0.05 | AU30: 0 | AW30: 9.8203076 | AX30: -0.3417967 | AY30: 9.6203076 | AZ30: -0.3417967 | BB30: 0.5472167855 | BC30: -0.000793456625
AB31: =AB30+1 -> 29 | AC31: =IF($AB31<$Y$4,$Y$2,(IF(($AC30-$Y$3)>0,$AC30-$Y$3,0))) -> 0.25 | AD31: =IF($AB31<$AA$4,$AA$2,(IF(($AD30-$AA$3)>0,$AD30-$AA$3,0))) -> 0.05 | AF31: 52.45 | AG31: =AF30-AF31 -> -1.8 | AI31: 29.25 | AJ31: =AI30-AI31 -> -1 | AK31: 29.05 | AL31: =AK30-AK31 -> -1 | AM31: 81.5 | AN31: =AM30-AM31 -> -2.8 | AP31: 0.264160149 | AQ31: =AP30-AP31 -> -0.000488281 | AR31: 0.064160149 | AS31: =AR30-AR31 -> -0.000488281 | AT31: 0.05 | AU31: =AT30-AT31 -> 0 | AW31: 10.1621043 | AX31: =AW30-AW31 -> -0.3417967 | AY31: 9.9621043 | AZ31: =AY30-AY31 -> -0.3417967 | BB31: 0.5480102421 | BC31: =BB30-BB31 -> -0.000793456625
AB32: 30 | AC32: 0.25 | AD32: 0.05 | AF32: 54.25 | AG32: -1.8 | AI32: 30.25 | AJ32: -1 | AK32: 30.05 | AL32: -1 | AM32: 84.3 | AN32: -2.8 | AP32: 0.26464843 | AQ32: -0.000488281 | AR32: 0.06464843 | AS32: -0.000488281 | AT32: 0.05 | AU32: 0 | AW32: 10.503901 | AX32: -0.3417967 | AY32: 10.303901 | AZ32: -0.3417967 | BB32: 0.5488036988 | BC32: -0.000793456625
AB33: 31 | AC33: 0.25 | AD33: 0.05 | AF33: 56.05 | AG33: -1.8 | AI33: 31.25 | AJ33: -1 | AK33: 31.05 | AL33: -1 | AM33: 87.1 | AN33: -2.8 | AP33: 0.265136711 | AQ33: -0.000488281 | AR33: 0.065136711 | AS33: -0.000488281 | AT33: 0.05 | AU33: 0 | AW33: 10.8456977 | AX33: -0.3417967 | AY33: 10.6456977 | AZ33: -0.3417967 | BB33: 0.5495971554 | BC33: -0.000793456625
AB34: 32 | AC34: 0.25 | AD34: 0.05 | AF34: 57.85 | AG34: -1.8 | AI34: 32.25 | AJ34: -1 | AK34: 32.05 | AL34: -1 | AM34: 89.9 | AN34: -2.8 | AP34: 0.265624992 | AQ34: -0.000488281 | AR34: 0.065624992 | AS34: -0.000488281 | AT34: 0.05 | AU34: 0 | AW34: 11.1874944 | AX34: -0.3417967 | AY34: 10.9874944 | AZ34: -0.3417967 | BB34: 0.550390612 | BC34: -0.000793456625
AB35: 33 | AC35: 0.25 | AD35: 0.05 | AF35: 59.65 | AG35: -1.8 | AI35: 33.25 | AJ35: -1 | AK35: 33.05 | AL35: -1 | AM35: 92.7 | AN35: -2.8 | AP35: 0.266113273 | AQ35: -0.000488281 | AR35: 0.066113273 | AS35: -0.000488281 | AT35: 0.05 | AU35: 0 | AW35: 11.5292911 | AX35: -0.3417967 | AY35: 11.3292911 | AZ35: -0.3417967 | BB35: 0.5511840686 | BC35: -0.000793456625
AB36: 34 | AC36: 0.25 | AD36: 0.05 | AF36: 61.45 | AG36: -1.8 | AI36: 34.25 | AJ36: -1 | AK36: 34.05 | AL36: -1 | AM36: 95.5 | AN36: -2.8 | AP36: 0.266601554 | AQ36: -0.000488281 | AR36: 0.066601554 | AS36: -0.000488281 | AT36: 0.05 | AU36: 0 | AW36: 11.8710878 | AX36: -0.3417967 | AY36: 11.6710878 | AZ36: -0.3417967 | BB36: 0.5519775253 | BC36: -0.000793456625
AB37: 35 | AC37: 0.25 | AD37: 0.05 | AF37: 63.25 | AG37: -1.8 | AI37: 35.25 | AJ37: -1 | AK37: 35.05 | AL37: -1 | AM37: 98.3 | AN37: -2.8 | AP37: 0.267089835 | AQ37: -0.000488281 | AR37: 0.067089835 | AS37: -0.000488281 | AT37: 0.05 | AU37: 0 | AW37: 12.2128845 | AX37: -0.3417967 | AY37: 12.0128845 | AZ37: -0.3417967 | BB37: 0.5527709819 | BC37: -0.000793456625
AB38: 36 | AC38: 0.25 | AD38: 0.05 | AF38: 65.05 | AG38: -1.8 | AI38: 36.25 | AJ38: -1 | AK38: 36.05 | AL38: -1 | AM38: 101.1 | AN38: -2.8 | AP38: 0.267578116 | AQ38: -0.000488281 | AR38: 0.067578116 | AS38: -0.000488281 | AT38: 0.05 | AU38: 0 | AW38: 12.5546812 | AX38: -0.3417967 | AY38: 12.3546812 | AZ38: -0.3417967 | BB38: 0.5535644385 | BC38: -0.000793456625
AB39: 37 | AC39: 0.25 | AD39: 0.05 | AF39: 66.85 | AG39: -1.8 | AI39: 37.25 | AJ39: -1 | AK39: 37.05 | AL39: -1 | AM39: 103.9 | AN39: -2.8 | AP39: 0.268066397 | AQ39: -0.000488281 | AR39: 0.068066397 | AS39: -0.000488281 | AT39: 0.05 | AU39: 0 | AW39: 12.8964779 | AX39: -0.3417967 | AY39: 12.6964779 | AZ39: -0.3417967 | BB39: 0.5543578951 | BC39: -0.000793456625
AB40: 38 | AC40: 0.25 | AD40: 0.05 | AF40: 68.65 | AG40: -1.8 | AI40: 38.25 | AJ40: -1 | AK40: 38.05 | AL40: -1 | AM40: 106.7 | AN40: -2.8 | AP40: 0.268554678 | AQ40: -0.000488281 | AR40: 0.068554678 | AS40: -0.000488281 | AT40: 0.05 | AU40: 0 | AW40: 13.2382746 | AX40: -0.3417967 | AY40: 13.0382746 | AZ40: -0.3417967 | BB40: 0.5551513517 | BC40: -0.000793456625
AB41: 39 | AC41: 0.25 | AD41: 0.05 | AF41: 70.45 | AG41: -1.8 | AI41: 39.25 | AJ41: -1 | AK41: 39.05 | AL41: -1 | AM41: 109.5 | AN41: -2.8 | AP41: 0.269042959 | AQ41: -0.000488281 | AR41: 0.069042959 | AS41: -0.000488281 | AT41: 0.05 | AU41: 0 | AW41: 13.5800713 | AX41: -0.3417967 | AY41: 13.3800713 | AZ41: -0.3417967 | BB41: 0.5559448084 | BC41: -0.000793456625
AB42: 40 | AC42: 0.25 | AD42: 0.05 | AF42: 72.25 | AG42: -1.8 | AI42: 40.25 | AJ42: -1 | AK42: 40.05 | AL42: -1 | AM42: 112.3 | AN42: -2.8 | AP42: 0.26953124 | AQ42: -0.000488281 | AR42: 0.06953124 | AS42: -0.000488281 | AT42: 0.05 | AU42: 0 | AW42: 13.921868 | AX42: -0.3417967 | AY42: 13.721868 | AZ42: -0.3417967 | BB42: 0.556738265 | BC42: -0.000793456625
AB43: 41 | AC43: 0.25 | AD43: 0.05 | AF43: 74.05 | AG43: -1.8 | AI43: 41.25 | AJ43: -1 | AK43: 41.05 | AL43: -1 | AM43: 115.1 | AN43: -2.8 | AP43: 0.270019521 | AQ43: -0.000488281 | AR43: 0.070019521 | AS43: -0.000488281 | AT43: 0.05 | AU43: 0 | AW43: 14.2636647 | AX43: -0.3417967 | AY43: 14.0636647 | AZ43: -0.3417967 | BB43: 0.5575317216 | BC43: -0.000793456625
AB44: 42 | AC44: 0.25 | AD44: 0.05 | AF44: 75.85 | AG44: -1.8 | AI44: 42.25 | AJ44: -1 | AK44: 42.05 | AL44: -1 | AM44: 117.9 | AN44: -2.8 | AP44: 0.270507802 | AQ44: -0.000488281 | AR44: 0.070507802 | AS44: -0.000488281 | AT44: 0.05 | AU44: 0 | AW44: 14.6054614 | AX44: -0.3417967 | AY44: 14.4054614 | AZ44: -0.3417967 | BB44: 0.5583251783 | BC44: -0.000793456625
AB45: 43 | AC45: 0.25 | AD45: 0.05 | AF45: 77.65 | AG45: -1.8 | AI45: 43.25 | AJ45: -1 | AK45: 43.05 | AL45: -1 | AM45: 120.7 | AN45: -2.8 | AP45: 0.270996083 | AQ45: -0.000488281 | AR45: 0.070996083 | AS45: -0.000488281 | AT45: 0.05 | AU45: 0 | AW45: 14.9472581 | AX45: -0.3417967 | AY45: 14.7472581 | AZ45: -0.3417967 | BB45: 0.5591186349 | BC45: -0.000793456625
AB46: 44 | AC46: 0.25 | AD46: 0.05 | AF46: 79.45 | AG46: -1.8 | AI46: 44.25 | AJ46: -1 | AK46: 44.05 | AL46: -1 | AM46: 123.5 | AN46: -2.8 | AP46: 0.271484364 | AQ46: -0.000488281 | AR46: 0.071484364 | AS46: -0.000488281 | AT46: 0.05 | AU46: 0 | AW46: 15.2890548 | AX46: -0.3417967 | AY46: 15.0890548 | AZ46: -0.3417967 | BB46: 0.5599120915 | BC46: -0.000793456625
AB47: 45 | AC47: 0.25 | AD47: 0.05 | AF47: 81.25 | AG47: -1.8 | AI47: 45.25 | AJ47: -1 | AK47: 45.05 | AL47: -1 | AM47: 126.3 | AN47: -2.8 | AP47: 0.271972645 | AQ47: -0.000488281 | AR47: 0.071972645 | AS47: -0.000488281 | AT47: 0.05 | AU47: 0 | AW47: 15.6308515 | AX47: -0.3417967 | AY47: 15.4308515 | AZ47: -0.3417967 | BB47: 0.5607055481 | BC47: -0.000793456625
AB48: 46 | AC48: 0.25 | AD48: 0.05 | AF48: 83.05 | AG48: -1.8 | AI48: 46.25 | AJ48: -1 | AK48: 46.05 | AL48: -1 | AM48: 129.1 | AN48: -2.8 | AP48: 0.272460926 | AQ48: -0.000488281 | AR48: 0.072460926 | AS48: -0.000488281 | AT48: 0.05 | AU48: 0 | AW48: 15.9726482 | AX48: -0.3417967 | AY48: 15.7726482 | AZ48: -0.3417967 | BB48: 0.5614990048 | BC48: -0.000793456625
AB49: 47 | AC49: 0.25 | AD49: 0.05 | AF49: 84.85 | AG49: -1.8 | AI49: 47.25 | AJ49: -1 | AK49: 47.05 | AL49: -1 | AM49: 131.9 | AN49: -2.8 | AP49: 0.272949207 | AQ49: -0.000488281 | AR49: 0.072949207 | AS49: -0.000488281 | AT49: 0.05 | AU49: 0 | AW49: 16.3144449 | AX49: -0.3417967 | AY49: 16.1144449 | AZ49: -0.3417967 | BB49: 0.5622924614 | BC49: -0.000793456625
AB50: 48 | AC50: 0.25 | AD50: 0.05 | AF50: 86.65 | AG50: -1.8 | AI50: 48.25 | AJ50: -1 | AK50: 48.05 | AL50: -1 | AM50: 134.7 | AN50: -2.8 | AP50: 0.273437488 | AQ50: -0.000488281 | AR50: 0.073437488 | AS50: -0.000488281 | AT50: 0.05 | AU50: 0 | AW50: 16.6562416 | AX50: -0.3417967 | AY50: 16.4562416 | AZ50: -0.3417967 | BB50: 0.563085918 | BC50: -0.000793456625
AB51: 49 | AC51: 0.25 | AD51: 0.05 | AF51: 88.45 | AG51: -1.8 | AI51: 49.25 | AJ51: -1 | AK51: 49.05 | AL51: -1 | AM51: 137.5 | AN51: -2.8 | AP51: 0.273925769 | AQ51: -0.000488281 | AR51: 0.073925769 | AS51: -0.000488281 | AT51: 0.05 | AU51: 0 | AW51: 16.9980383 | AX51: -0.3417967 | AY51: 16.7980383 | AZ51: -0.3417967 | BB51: 0.5638793746 | BC51: -0.000793456625
AB52: 50 | AC52: 0.25 | AD52: 0.05 | AF52: 90.25 | AG52: -1.8 | AI52: 50.25 | AJ52: -1 | AK52: 50.05 | AL52: -1 | AM52: 140.3 | AN52: -2.8 | AP52: 0.27441405 | AQ52: -0.000488281 | AR52: 0.07441405 | AS52: -0.000488281 | AT52: 0.05 | AU52: 0 | AW52: 17.339835 | AX52: -0.3417967 | AY52: 17.139835 | AZ52: -0.3417967 | BB52: 0.5646728313 | BC52: -0.000793456625
AB53: 51 | AC53: 0.25 | AD53: 0.05 | AF53: 92.05 | AG53: -1.8 | AI53: 51.25 | AJ53: -1 | AK53: 51.05 | AL53: -1 | AM53: 143.1 | AN53: -2.8 | AP53: 0.274902331 | AQ53: -0.000488281 | AR53: 0.074902331 | AS53: -0.000488281 | AT53: 0.05 | AU53: 0 | AW53: 17.6816317 | AX53: -0.3417967 | AY53: 17.4816317 | AZ53: -0.3417967 | BB53: 0.5654662879 | BC53: -0.000793456625
AB54: 52 | AC54: 0.25 | AD54: 0.05 | AF54: 93.85 | AG54: -1.8 | AI54: 52.25 | AJ54: -1 | AK54: 52.05 | AL54: -1 | AM54: 145.9 | AN54: -2.8 | AP54: 0.275390612 | AQ54: -0.000488281 | AR54: 0.075390612 | AS54: -0.000488281 | AT54: 0.05 | AU54: 0 | AW54: 18.0234284 | AX54: -0.3417967 | AY54: 17.8234284 | AZ54: -0.3417967 | BB54: 0.5662597445 | BC54: -0.000793456625
AB55: 53 | AC55: 0.25 | AD55: 0.05 | AF55: 95.65 | AG55: -1.8 | AI55: 53.25 | AJ55: -1 | AK55: 53.05 | AL55: -1 | AM55: 148.7 | AN55: -2.8 | AP55: 0.275878893 | AQ55: -0.000488281 | AR55: 0.075878893 | AS55: -0.000488281 | AT55: 0.05 | AU55: 0 | AW55: 18.3652251 | AX55: -0.3417967 | AY55: 18.1652251 | AZ55: -0.3417967 | BB55: 0.5670532011 | BC55: -0.000793456625
AB56: 54 | AC56: 0.25 | AD56: 0.05 | AF56: 97.45 | AG56: -1.8 | AI56: 54.25 | AJ56: -1 | AK56: 54.05 | AL56: -1 | AM56: 151.5 | AN56: -2.8 | AP56: 0.276367174 | AQ56: -0.000488281 | AR56: 0.076367174 | AS56: -0.000488281 | AT56: 0.05 | AU56: 0 | AW56: 18.7070218 | AX56: -0.3417967 | AY56: 18.5070218 | AZ56: -0.3417967 | BB56: 0.5678466578 | BC56: -0.000793456625
AB57: 55 | AC57: 0.25 | AD57: 0.05 | AF57: 99.25 | AG57: -1.8 | AI57: 55.25 | AJ57: -1 | AK57: 55.05 | AL57: -1 | AM57: 154.3 | AN57: -2.8 | AP57: 0.276855455 | AQ57: -0.000488281 | AR57: 0.076855455 | AS57: -0.000488281 | AT57: 0.05 | AU57: 0 | AW57: 19.0488185 | AX57: -0.3417967 | AY57: 18.8488185 | AZ57: -0.3417967 | BB57: 0.5686401144 | BC57: -0.000793456625
AB58: =AB57+1 -> 56 | AC58: =IF($AB58<$Y$4,$Y$2,(IF(($AC57-$Y$3)>0,$AC57-$Y$3,0))) -> 0.25 | AD58: =IF($AB58<$AA$4,$AA$2,(IF(($AD57-$AA$3)>0,$AD57-$AA$3,0))) -> 0.05 | AF58: 101.05 | AG58: =AF57-AF58 -> -1.8 | AI58: 56.25 | AJ58: =AI57-AI58 -> -1 | AK58: 56.05 | AL58: =AK57-AK58 -> -1 | AM58: 157.1 | AN58: =AM57-AM58 -> -2.8 | AP58: 0.277343736 | AQ58: =AP57-AP58 -> -0.000488281 | AR58: 0.077343736 | AS58: =AR57-AR58 -> -0.000488281 | AT58: 0.05 | AU58: =AT57-AT58 -> 0 | AW58: 19.3906152 | AX58: =AW57-AW58 -> -0.3417967 | AY58: 19.1906152 | AZ58: =AY57-AY58 -> -0.3417967 | BB58: 0.569433571 | BC58: =BB57-BB58 -> -0.000793456625
AB59: 57 | AC59: 0.25 | AD59: 0.05 | AF59: 102.85 | AG59: -1.8 | AI59: 57.25 | AJ59: -1 | AK59: 57.05 | AL59: -1 | AM59: 159.9 | AN59: -2.8 | AP59: 0.277832017 | AQ59: -0.000488281 | AR59: 0.077832017 | AS59: -0.000488281 | AT59: 0.05 | AU59: 0 | AW59: 19.7324119 | AX59: -0.3417967 | AY59: 19.5324119 | AZ59: -0.3417967 | BB59: 0.5702270276 | BC59: -0.000793456625
AB60: 58 | AC60: 0.25 | AD60: 0.05 | AF60: 104.65 | AG60: -1.8 | AI60: 58.25 | AJ60: -1 | AK60: 58.05 | AL60: -1 | AM60: 162.7 | AN60: -2.8 | AP60: 0.278320298 | AQ60: -0.000488281 | AR60: 0.078320298 | AS60: -0.000488281 | AT60: 0.05 | AU60: 0 | AW60: 20.0742086 | AX60: -0.3417967 | AY60: 19.8742086 | AZ60: -0.3417967 | BB60: 0.5710204842 | BC60: -0.000793456625
AB61: 59 | AC61: 0.25 | AD61: 0.05 | AF61: 106.45 | AG61: -1.8 | AI61: 59.25 | AJ61: -1 | AK61: 59.05 | AL61: -1 | AM61: 165.5 | AN61: -2.8 | AP61: 0.278808579 | AQ61: -0.000488281 | AR61: 0.078808579 | AS61: -0.000488281 | AT61: 0.05 | AU61: 0 | AW61: 20.4160053 | AX61: -0.3417967 | AY61: 20.2160053 | AZ61: -0.3417967 | BB61: 0.5718139409 | BC61: -0.000793456625
AB62: 60 | AC62: 0.25 | AD62: 0.05 | AF62: 108.25 | AG62: -1.8 | AI62: 60.25 | AJ62: -1 | AK62: 60.05 | AL62: -1 | AM62: 168.3 | AN62: -2.8 | AP62: 0.27929686 | AQ62: -0.000488281 | AR62: 0.07929686 | AS62: -0.000488281 | AT62: 0.05 | AU62: 0 | AW62: 20.757802 | AX62: -0.3417967 | AY62: 20.557802 | AZ62: -0.3417967 | BB62: 0.5726073975 | BC62: -0.000793456625
AB63: =AB62+1 -> 61 | AC63: =IF($AB63<$Y$4,$Y$2,(IF(($AC62-$Y$3)>0,$AC62-$Y$3,0))) -> 0.25 | AD63: =IF($AB63<$AA$4,$AA$2,(IF(($AD62-$AA$3)>0,$AD62-$AA$3,0))) -> 0.05 | AF63: 110.05 | AG63: =AF62-AF63 -> -1.8 | AI63: 61.25 | AJ63: =AI62-AI63 -> -1 | AK63: 61.05 | AL63: =AK62-AK63 -> -1 | AM63: 171.1 | AN63: =AM62-AM63 -> -2.8 | AP63: 0.279785141 | AQ63: =AP62-AP63 -> -0.000488281 | AR63: 0.079785141 | AS63: =AR62-AR63 -> -0.000488281 | AT63: 0.05 | AU63: =AT62-AT63 -> 0 | AW63: 21.0995987 | AX63: =AW62-AW63 -> -0.3417967 | AY63: 20.8995987 | AZ63: =AY62-AY63 -> -0.3417967 | BB63: 0.5734008541 | BC63: =BB62-BB63 -> -0.000793456625
AB64: 62 | AC64: 0.25 | AD64: 0.05 | AF64: 111.85 | AG64: -1.8 | AI64: 62.25 | AJ64: -1 | AK64: 62.05 | AL64: -1 | AM64: 173.9 | AN64: -2.8 | AP64: 0.280273422 | AQ64: -0.000488281 | AR64: 0.080273422 | AS64: -0.000488281 | AT64: 0.05 | AU64: 0 | AW64: 21.4413954 | AX64: -0.3417967 | AY64: 21.2413954 | AZ64: -0.3417967 | BB64: 0.5741943108 | BC64: -0.000793456625
AB65: 63 | AC65: 0.25 | AD65: 0.05 | AF65: 113.65 | AG65: -1.8 | AI65: 63.25 | AJ65: -1 | AK65: 63.05 | AL65: -1 | AM65: 176.7 | AN65: -2.8 | AP65: 0.280761703 | AQ65: -0.000488281 | AR65: 0.080761703 | AS65: -0.000488281 | AT65: 0.05 | AU65: 0 | AW65: 21.7831921 | AX65: -0.3417967 | AY65: 21.5831921 | AZ65: -0.3417967 | BB65: 0.5749877674 | BC65: -0.000793456625
AB66: 64 | AC66: 0.25 | AD66: 0.05 | AF66: 115.45 | AG66: -1.8 | AI66: 64.25 | AJ66: -1 | AK66: 64.05 | AL66: -1 | AM66: =AF66+AK66 -> 179.5 | AN66: -2.8 | AP66: 0.281249984 | AQ66: -0.000488281 | AR66: 0.081249984 | AS66: -0.000488281 | AT66: 0.05 | AU66: 0 | AW66: 22.1249888 | AX66: -0.3417967 | AY66: 21.9249888 | AZ66: -0.3417967 | BB66: 0.575781224 | BC66: -0.000793456625
AB67: =AB66+1 -> 65 | AC67: 0.25 | AD67: 0.05 | AF67: 117.25 | AG67: =AF66-AF67 -> -1.8 | AI67: 65.25 | AJ67: -1 | AK67: 65.05 | AL67: -1 | AM67: 182.3 | AN67: -2.8 | AP67: 0.281738265 | AQ67: -0.000488281 | AR67: 0.081738265 | AS67: -0.000488281 | AT67: 0.05 | AU67: 0 | AW67: 22.4667855 | AX67: -0.3417967 | AY67: 22.2667855 | AZ67: -0.3417967 | BB67: 0.5765746806 | BC67: -0.000793456625
AB68: 66 | AC68: 0.25 | AD68: 0.05 | AF68: 119.05 | AG68: -1.8 | AI68: 66.25 | AJ68: =AI67-AI68 -> -1 | AK68: =$AD68+(($AB68*$W$2)*$L$2/($S$2*$T$2)*$U$2) -> 66.05 | AL68: -1 | AM68: 185.1 | AN68: -2.8 | AP68: =$AC68+(($AB68*$X$2)*($O$2/($R$2*$T$2))) -> 0.282226546 | AQ68: -0.000488281 | AR68: 0.082226546 | AS68: -0.000488281 | AT68: =AD68 -> 0.05 | AU68: 0 | AW68: 22.8085822 | AX68: -0.3417967 | AY68: =$AD68+(($AB68*$W$2)*$M$2/($S$2*$T$2)*$U$2) -> 22.6085822 | AZ68: -0.3417967 | BB68: =$AC68+(($AB68*$X$2)*(($O$2+$P$2)/($R$2*$T$2)))+($G$2*1) -> 0.5773681373 | BC68: -0.000793456625
AB69: 67 | AC69: =IF($AB69<$Y$4,$Y$2,(IF(($AC68-$Y$3)>0,$AC68-$Y$3,0))) -> 0.25 | AD69: =IF($AB69<$AA$4,$AA$2,(IF(($AD68-$AA$3)>0,$AD68-$AA$3,0))) -> 0.05 | AF69: =$AC69+(($AB69*$W$2)*$K$2/($Q$2*$T$2)) -> 120.85 | AG69: -1.8 | AI69: =$AC69+(($AB69*$W$2)*$L$2/($Q$2*$T$2)) -> 67.25 | AJ69: =AI68-AI69 -> -1 | AK69: 67.05 | AL69: -1 | AM69: 187.9 | AN69: -2.8 | AP69: 0.282714827 | AQ69: =AP68-AP69 -> -0.000488281 | AR69: 0.082714827 | AS69: -0.000488281 | AT69: 0.05 | AU69: 0 | AW69: =$AC69+(($AB69*$W$2)*$M$2/($Q$2*$T$2)) -> 23.1503789 | AX69: =AW68-AW69 -> -0.3417967 | AY69: 22.9503789 | AZ69: =AY68-AY69 -> -0.3417967 | BB69: 0.5781615939 | BC69: =BB68-BB69 -> -0.000793456625
AB70: 68 | AC70: 0.25 | AD70: 0.05 | AF70: 122.65 | AG70: -1.8 | AI70: 68.25 | AJ70: -1 | AK70: 68.05 | AL70: -1 | AM70: 190.7 | AN70: -2.8 | AP70: 0.283203108 | AQ70: -0.000488281 | AR70: 0.083203108 | AS70: -0.000488281 | AT70: 0.05 | AU70: 0 | AW70: 23.4921756 | AX70: -0.3417967 | AY70: 23.2921756 | AZ70: -0.3417967 | BB70: 0.5789550505 | BC70: -0.000793456625
AB71: 69 | AC71: 0.25 | AD71: 0.05 | AF71: 124.45 | AG71: -1.8 | AI71: 69.25 | AJ71: -1 | AK71: 69.05 | AL71: -1 | AM71: 193.5 | AN71: -2.8 | AP71: 0.283691389 | AQ71: -0.000488281 | AR71: 0.083691389 | AS71: -0.000488281 | AT71: 0.05 | AU71: 0 | AW71: 23.8339723 | AX71: -0.3417967 | AY71: 23.6339723 | AZ71: -0.3417967 | BB71: 0.5797485071 | BC71: -0.000793456625
AB72: 70 | AC72: 0.25 | AD72: 0.05 | AF72: 126.25 | AG72: -1.8 | AI72: 70.25 | AJ72: -1 | AK72: 70.05 | AL72: -1 | AM72: 196.3 | AN72: -2.8 | AP72: 0.28417967 | AQ72: -0.000488281 | AR72: 0.08417967 | AS72: -0.000488281 | AT72: 0.05 | AU72: 0 | AW72: 24.175769 | AX72: -0.3417967 | AY72: 23.975769 | AZ72: -0.3417967 | BB72: 0.5805419638 | BC72: -0.000793456625
AB73: 71 | AC73: 0.25 | AD73: 0.05 | AF73: 128.05 | AG73: -1.8 | AI73: 71.25 | AJ73: -1 | AK73: 71.05 | AL73: -1 | AM73: 199.1 | AN73: -2.8 | AP73: 0.284667951 | AQ73: -0.000488281 | AR73: 0.084667951 | AS73: -0.000488281 | AT73: 0.05 | AU73: 0 | AW73: 24.5175657 | AX73: -0.3417967 | AY73: 24.3175657 | AZ73: -0.3417967 | BB73: 0.5813354204 | BC73: -0.000793456625
AB74: 72 | AC74: 0.25 | AD74: 0.05 | AF74: 129.85 | AG74: -1.8 | AI74: 72.25 | AJ74: -1 | AK74: 72.05 | AL74: -1 | AM74: 201.9 | AN74: -2.8 | AP74: 0.285156232 | AQ74: -0.000488281 | AR74: =$AD74+(($AB74*$X$2)*$O$2/($S$2*$T$2)*$V$2) -> 0.085156232 | AS74: -0.000488281 | AT74: 0.05 | AU74: 0 | AW74: 24.8593624 | AX74: -0.3417967 | AY74: 24.6593624 | AZ74: -0.3417967 | BB74: 0.582128877 | BC74: -0.000793456625
AB75: 73 | AC75: 0.25 | AD75: 0.05 | AF75: 131.65 | AG75: -1.8 | AI75: 73.25 | AJ75: -1 | AK75: 73.05 | AL75: -1 | AM75: 204.7 | AN75: -2.8 | AP75: 0.285644513 | AQ75: -0.000488281 | AR75: 0.085644513 | AS75: -0.000488281 | AT75: 0.05 | AU75: 0 | AW75: 25.2011591 | AX75: -0.3417967 | AY75: 25.0011591 | AZ75: -0.3417967 | BB75: 0.5829223336 | BC75: -0.000793456625
AB76: 74 | AC76: 0.25 | AD76: 0.05 | AF76: 133.45 | AG76: -1.8 | AI76: 74.25 | AJ76: -1 | AK76: 74.05 | AL76: -1 | AM76: 207.5 | AN76: -2.8 | AP76: 0.286132794 | AQ76: -0.000488281 | AR76: 0.086132794 | AS76: -0.000488281 | AT76: 0.05 | AU76: 0 | AW76: 25.5429558 | AX76: -0.3417967 | AY76: 25.3429558 | AZ76: -0.3417967 | BB76: 0.5837157903 | BC76: -0.000793456625
AB77: 75 | AC77: 0.25 | AD77: 0.05 | AF77: 135.25 | AG77: -1.8 | AI77: 75.25 | AJ77: -1 | AK77: 75.05 | AL77: -1 | AM77: 210.3 | AN77: -2.8 | AP77: 0.286621075 | AQ77: -0.000488281 | AR77: 0.086621075 | AS77: -0.000488281 | AT77: 0.05 | AU77: 0 | AW77: 25.8847525 | AX77: -0.3417967 | AY77: 25.6847525 | AZ77: -0.3417967 | BB77: 0.5845092469 | BC77: -0.000793456625
AB78: 76 | AC78: 0.25 | AD78: 0.05 | AF78: 137.05 | AG78: -1.8 | AI78: 76.25 | AJ78: -1 | AK78: 76.05 | AL78: -1 | AM78: 213.1 | AN78: -2.8 | AP78: 0.287109356 | AQ78: -0.000488281 | AR78: 0.087109356 | AS78: -0.000488281 | AT78: 0.05 | AU78: 0 | AW78: 26.2265492 | AX78: -0.3417967 | AY78: 26.0265492 | AZ78: -0.3417967 | BB78: 0.5853027035 | BC78: -0.000793456625
AB79: 77 | AC79: 0.25 | AD79: 0.05 | AF79: 138.85 | AG79: -1.8 | AI79: 77.25 | AJ79: -1 | AK79: 77.05 | AL79: -1 | AM79: 215.9 | AN79: -2.8 | AP79: 0.287597637 | AQ79: -0.000488281 | AR79: 0.087597637 | AS79: -0.000488281 | AT79: 0.05 | AU79: 0 | AW79: 26.5683459 | AX79: -0.3417967 | AY79: 26.3683459 | AZ79: -0.3417967 | BB79: 0.5860961601 | BC79: -0.000793456625
AB80: 78 | AC80: 0.25 | AD80: 0.05 | AF80: 140.65 | AG80: -1.8 | AI80: 78.25 | AJ80: -1 | AK80: 78.05 | AL80: -1 | AM80: 218.7 | AN80: -2.8 | AP80: 0.288085918 | AQ80: -0.000488281 | AR80: 0.088085918 | AS80: -0.000488281 | AT80: 0.05 | AU80: 0 | AW80: 26.9101426 | AX80: -0.3417967 | AY80: 26.7101426 | AZ80: -0.3417967 | BB80: 0.5868896167 | BC80: -0.000793456625
AB81: 79 | AC81: 0.25 | AD81: 0.05 | AF81: 142.45 | AG81: -1.8 | AI81: 79.25 | AJ81: -1 | AK81: 79.05 | AL81: -1 | AM81: 221.5 | AN81: -2.8 | AP81: 0.288574199 | AQ81: -0.000488281 | AR81: 0.088574199 | AS81: -0.000488281 | AT81: 0.05 | AU81: 0 | AW81: 27.2519393 | AX81: -0.3417967 | AY81: 27.0519393 | AZ81: -0.3417967 | BB81: 0.5876830734 | BC81: -0.000793456625
AB82: 80 | AC82: 0.25 | AD82: 0.05 | AF82: 144.25 | AG82: -1.8 | AI82: 80.25 | AJ82: -1 | AK82: 80.05 | AL82: -1 | AM82: 224.3 | AN82: -2.8 | AP82: 0.28906248 | AQ82: -0.000488281 | AR82: 0.08906248 | AS82: -0.000488281 | AT82: 0.05 | AU82: 0 | AW82: 27.593736 | AX82: -0.3417967 | AY82: 27.393736 | AZ82: -0.3417967 | BB82: 0.58847653 | BC82: -0.000793456625
AB83: 81 | AC83: 0.25 | AD83: 0.05 | AF83: 146.05 | AG83: -1.8 | AI83: 81.25 | AJ83: -1 | AK83: 81.05 | AL83: -1 | AM83: 227.1 | AN83: -2.8 | AP83: 0.289550761 | AQ83: -0.000488281 | AR83: 0.089550761 | AS83: -0.000488281 | AT83: 0.05 | AU83: 0 | AW83: 27.9355327 | AX83: -0.3417967 | AY83: 27.7355327 | AZ83: -0.3417967 | BB83: 0.5892699866 | BC83: -0.000793456625
AB84: 82 | AC84: 0.25 | AD84: 0.05 | AF84: 147.85 | AG84: -1.8 | AI84: 82.25 | AJ84: -1 | AK84: 82.05 | AL84: -1 | AM84: 229.9 | AN84: -2.8 | AP84: 0.290039042 | AQ84: -0.000488281 | AR84: 0.090039042 | AS84: -0.000488281 | AT84: 0.05 | AU84: 0 | AW84: 28.2773294 | AX84: -0.3417967 | AY84: 28.0773294 | AZ84: -0.3417967 | BB84: 0.5900634433 | BC84: -0.000793456625
AB85: 83 | AC85: 0.25 | AD85: 0.05 | AF85: 149.65 | AG85: -1.8 | AI85: 83.25 | AJ85: -1 | AK85: 83.05 | AL85: -1 | AM85: 232.7 | AN85: -2.8 | AP85: 0.290527323 | AQ85: -0.000488281 | AR85: 0.090527323 | AS85: -0.000488281 | AT85: 0.05 | AU85: 0 | AW85: 28.6191261 | AX85: -0.3417967 | AY85: 28.4191261 | AZ85: -0.3417967 | BB85: 0.5908568999 | BC85: -0.000793456625
AB86: 84 | AC86: 0.25 | AD86: 0.05 | AF86: 151.45 | AG86: -1.8 | AI86: 84.25 | AJ86: -1 | AK86: 84.05 | AL86: -1 | AM86: 235.5 | AN86: -2.8 | AP86: 0.291015604 | AQ86: -0.000488281 | AR86: 0.091015604 | AS86: -0.000488281 | AT86: 0.05 | AU86: 0 | AW86: 28.9609228 | AX86: -0.3417967 | AY86: 28.7609228 | AZ86: -0.3417967 | BB86: 0.5916503565 | BC86: -0.000793456625
AB87: 85 | AC87: 0.25 | AD87: 0.05 | AF87: 153.25 | AG87: -1.8 | AI87: 85.25 | AJ87: -1 | AK87: 85.05 | AL87: -1 | AM87: 238.3 | AN87: -2.8 | AP87: 0.291503885 | AQ87: -0.000488281 | AR87: 0.091503885 | AS87: -0.000488281 | AT87: 0.05 | AU87: 0 | AW87: 29.3027195 | AX87: -0.3417967 | AY87: 29.1027195 | AZ87: -0.3417967 | BB87: 0.5924438131 | BC87: -0.000793456625
AB88: 86 | AC88: 0.25 | AD88: 0.05 | AF88: 155.05 | AG88: -1.8 | AI88: 86.25 | AJ88: -1 | AK88: 86.05 | AL88: -1 | AM88: 241.1 | AN88: -2.8 | AP88: 0.291992166 | AQ88: -0.000488281 | AR88: 0.091992166 | AS88: -0.000488281 | AT88: 0.05 | AU88: 0 | AW88: 29.6445162 | AX88: -0.3417967 | AY88: 29.4445162 | AZ88: -0.3417967 | BB88: 0.5932372698 | BC88: -0.000793456625
AB89: 87 | AC89: 0.25 | AD89: 0.05 | AF89: 156.85 | AG89: -1.8 | AI89: 87.25 | AJ89: -1 | AK89: 87.05 | AL89: -1 | AM89: 243.9 | AN89: -2.8 | AP89: 0.292480447 | AQ89: -0.000488281 | AR89: 0.092480447 | AS89: -0.000488281 | AT89: 0.05 | AU89: 0 | AW89: 29.9863129 | AX89: -0.3417967 | AY89: 29.7863129 | AZ89: -0.3417967 | BB89: 0.5940307264 | BC89: -0.000793456625
AB90: 88 | AC90: 0.25 | AD90: 0.05 | AF90: 158.65 | AG90: -1.8 | AI90: 88.25 | AJ90: -1 | AK90: 88.05 | AL90: -1 | AM90: 246.7 | AN90: -2.8 | AP90: 0.292968728 | AQ90: -0.000488281 | AR90: 0.092968728 | AS90: -0.000488281 | AT90: 0.05 | AU90: 0 | AW90: 30.3281096 | AX90: -0.3417967 | AY90: 30.1281096 | AZ90: -0.3417967 | BB90: 0.594824183 | BC90: -0.000793456625
AB91: 89 | AC91: 0.25 | AD91: 0.05 | AF91: 160.45 | AG91: -1.8 | AI91: 89.25 | AJ91: -1 | AK91: 89.05 | AL91: -1 | AM91: 249.5 | AN91: -2.8 | AP91: 0.293457009 | AQ91: -0.000488281 | AR91: 0.093457009 | AS91: -0.000488281 | AT91: 0.05 | AU91: 0 | AW91: 30.6699063 | AX91: -0.3417967 | AY91: 30.4699063 | AZ91: -0.3417967 | BB91: 0.5956176396 | BC91: -0.000793456625
AB92: 90 | AC92: 0.25 | AD92: 0.05 | AF92: 162.25 | AG92: -1.8 | AI92: 90.25 | AJ92: -1 | AK92: 90.05 | AL92: -1 | AM92: 252.3 | AN92: -2.8 | AP92: 0.29394529 | AQ92: -0.000488281 | AR92: 0.09394529 | AS92: -0.000488281 | AT92: 0.05 | AU92: 0 | AW92: 31.011703 | AX92: -0.3417967 | AY92: 30.811703 | AZ92: -0.3417967 | BB92: 0.5964110962 | BC92: -0.000793456625
AB93: 91 | AC93: 0.25 | AD93: 0.05 | AF93: 164.05 | AG93: -1.8 | AI93: 91.25 | AJ93: -1 | AK93: 91.05 | AL93: -1 | AM93: 255.1 | AN93: -2.8 | AP93: 0.294433571 | AQ93: -0.000488281 | AR93: 0.094433571 | AS93: -0.000488281 | AT93: 0.05 | AU93: 0 | AW93: 31.3534997 | AX93: -0.3417967 | AY93: 31.1534997 | AZ93: -0.3417967 | BB93: 0.5972045529 | BC93: -0.000793456625
AB94: 92 | AC94: 0.25 | AD94: 0.05 | AF94: 165.85 | AG94: -1.8 | AI94: 92.25 | AJ94: -1 | AK94: 92.05 | AL94: -1 | AM94: 257.9 | AN94: -2.8 | AP94: 0.294921852 | AQ94: -0.000488281 | AR94: 0.094921852 | AS94: -0.000488281 | AT94: 0.05 | AU94: 0 | AW94: 31.6952964 | AX94: -0.3417967 | AY94: 31.4952964 | AZ94: -0.3417967 | BB94: 0.5979980095 | BC94: -0.000793456625
AB95: 93 | AC95: 0.25 | AD95: 0.05 | AF95: 167.65 | AG95: -1.8 | AI95: 93.25 | AJ95: -1 | AK95: 93.05 | AL95: -1 | AM95: 260.7 | AN95: -2.8 | AP95: 0.295410133 | AQ95: -0.000488281 | AR95: 0.095410133 | AS95: -0.000488281 | AT95: 0.05 | AU95: 0 | AW95: 32.0370931 | AX95: -0.3417967 | AY95: 31.8370931 | AZ95: -0.3417967 | BB95: 0.5987914661 | BC95: -0.000793456625
AB96: 94 | AC96: 0.25 | AD96: 0.05 | AF96: 169.45 | AG96: -1.8 | AI96: 94.25 | AJ96: -1 | AK96: 94.05 | AL96: -1 | AM96: 263.5 | AN96: -2.8 | AP96: 0.295898414 | AQ96: -0.000488281 | AR96: 0.095898414 | AS96: -0.000488281 | AT96: 0.05 | AU96: 0 | AW96: 32.3788898 | AX96: -0.3417967 | AY96: 32.1788898 | AZ96: -0.3417967 | BB96: 0.5995849228 | BC96: -0.000793456625
AB97: 95 | AC97: 0.25 | AD97: 0.05 | AF97: 171.25 | AG97: -1.8 | AI97: 95.25 | AJ97: -1 | AK97: 95.05 | AL97: -1 | AM97: 266.3 | AN97: -2.8 | AP97: 0.296386695 | AQ97: -0.000488281 | AR97: 0.096386695 | AS97: -0.000488281 | AT97: 0.05 | AU97: 0 | AW97: 32.7206865 | AX97: -0.3417967 | AY97: 32.5206865 | AZ97: -0.3417967 | BB97: 0.6003783794 | BC97: -0.000793456625
AB98: 96 | AC98: 0.25 | AD98: 0.05 | AF98: 173.05 | AG98: -1.8 | AI98: 96.25 | AJ98: -1 | AK98: 96.05 | AL98: -1 | AM98: 269.1 | AN98: -2.8 | AP98: 0.296874976 | AQ98: -0.000488281 | AR98: 0.096874976 | AS98: -0.000488281 | AT98: 0.05 | AU98: 0 | AW98: 33.0624832 | AX98: -0.3417967 | AY98: 32.8624832 | AZ98: -0.3417967 | BB98: 0.601171836 | BC98: -0.000793456625
AB99: 97 | AC99: 0.25 | AD99: 0.05 | AF99: 174.85 | AG99: -1.8 | AI99: 97.25 | AJ99: -1 | AK99: 97.05 | AL99: -1 | AM99: 271.9 | AN99: -2.8 | AP99: 0.297363257 | AQ99: -0.000488281 | AR99: 0.097363257 | AS99: -0.000488281 | AT99: 0.05 | AU99: 0 | AW99: 33.4042799 | AX99: -0.3417967 | AY99: 33.2042799 | AZ99: -0.3417967 | BB99: 0.6019652926 | BC99: -0.000793456625
AB100: =AB99+1 -> 98 | AC100: 0.25 | AD100: 0.05 | AF100: 176.65 | AG100: -1.8 | AI100: 98.25 | AJ100: -1 | AK100: 98.05 | AL100: -1 | AM100: 274.7 | AN100: -2.8 | AP100: 0.297851538 | AQ100: -0.000488281 | AR100: 0.097851538 | AS100: -0.000488281 | AT100: 0.05 | AU100: 0 | AW100: 33.7460766 | AX100: -0.3417967 | AY100: 33.5460766 | AZ100: -0.3417967 | BB100: 0.6027587493 | BC100: -0.000793456625
AB101: =AB100+1 -> 99 | AC101: 0.25 | AD101: 0.05 | AF101: 178.45 | AG101: -1.8 | AI101: 99.25 | AJ101: -1 | AK101: 99.05 | AL101: -1 | AM101: 277.5 | AN101: -2.8 | AP101: 0.298339819 | AQ101: -0.000488281 | AR101: 0.098339819 | AS101: -0.000488281 | AT101: 0.05 | AU101: 0 | AW101: 34.0878733 | AX101: -0.3417967 | AY101: 33.8878733 | AZ101: -0.3417967 | BB101: 0.6035522059 | BC101: -0.000793456625
AB102: =AB101+1 -> 100 | AC102: =IF($AB102<$Y$4,$Y$2,(IF(($AC101-$Y$3)>0,$AC101-$Y$3,0))) -> 0.25 | AD102: =IF($AB102<$AA$4,$AA$2,(IF(($AD101-$AA$3)>0,$AD101-$AA$3,0))) -> 0.05 | AF102: 180.25 | AG102: =AF101-AF102 -> -1.8 | AI102: 100.25 | AJ102: =AI101-AI102 -> -1 | AK102: 100.05 | AL102: =AK101-AK102 -> -1 | AM102: 280.3 | AN102: =AM101-AM102 -> -2.8 | AP102: 0.2988281 | AQ102: =AP101-AP102 -> -0.000488281 | AR102: 0.0988281 | AS102: =AR101-AR102 -> -0.000488281 | AT102: 0.05 | AU102: =AT101-AT102 -> 0 | AW102: 34.42967 | AX102: =AW101-AW102 -> -0.3417967 | AY102: 34.22967 | AZ102: =AY101-AY102 -> -0.3417967 | BB102: 0.6043456625 | BC102: =BB101-BB102 -> -0.000793456625
AB103: =AB102+1 -> 101 | AC103: 0.25 | AD103: 0.05 | AF103: 182.05 | AG103: -1.8 | AI103: 101.25 | AJ103: -1 | AK103: 101.05 | AL103: -1 | AM103: 283.1 | AN103: -2.8 | AP103: 0.299316381 | AQ103: -0.000488281 | AR103: 0.099316381 | AS103: -0.000488281 | AT103: 0.05 | AU103: 0 | AW103: 34.7714667 | AX103: -0.3417967 | AY103: 34.5714667 | AZ103: -0.3417967 | BB103: 0.6051391191 | BC103: -0.000793456625
AB104: =AB103+1 -> 102 | AC104: 0.25 | AD104: 0.05 | AF104: 183.85 | AG104: -1.8 | AI104: 102.25 | AJ104: -1 | AK104: 102.05 | AL104: -1 | AM104: 285.9 | AN104: -2.8 | AP104: 0.299804662 | AQ104: -0.000488281 | AR104: 0.099804662 | AS104: -0.000488281 | AT104: 0.05 | AU104: 0 | AW104: 35.1132634 | AX104: -0.3417967 | AY104: 34.9132634 | AZ104: -0.3417967 | BB104: 0.6059325758 | BC104: -0.000793456625
AB105: =AB104+1 -> 103 | AC105: 0.25 | AD105: 0.05 | AF105: 185.65 | AG105: -1.8 | AI105: 103.25 | AJ105: -1 | AK105: 103.05 | AL105: -1 | AM105: 288.7 | AN105: -2.8 | AP105: 0.300292943 | AQ105: -0.000488281 | AR105: 0.100292943 | AS105: -0.000488281 | AT105: 0.05 | AU105: 0 | AW105: 35.4550601 | AX105: -0.3417967 | AY105: 35.2550601 | AZ105: -0.3417967 | BB105: 0.6067260324 | BC105: -0.000793456625
AB106: 104 | AC106: 0.25 | AD106: 0.05 | AF106: 187.45 | AG106: -1.8 | AI106: 104.25 | AJ106: -1 | AK106: 104.05 | AL106: -1 | AM106: 291.5 | AN106: -2.8 | AP106: 0.300781224 | AQ106: -0.000488281 | AR106: 0.100781224 | AS106: -0.000488281 | AT106: 0.05 | AU106: 0 | AW106: 35.7968568 | AX106: -0.3417967 | AY106: 35.5968568 | AZ106: -0.3417967 | BB106: 0.607519489 | BC106: -0.000793456625
AB107: 105 | AC107: 0.25 | AD107: 0.05 | AF107: 189.25 | AG107: -1.8 | AI107: 105.25 | AJ107: -1 | AK107: 105.05 | AL107: -1 | AM107: 294.3 | AN107: -2.8 | AP107: 0.301269505 | AQ107: -0.000488281 | AR107: 0.101269505 | AS107: -0.000488281 | AT107: 0.05 | AU107: 0 | AW107: 36.1386535 | AX107: -0.3417967 | AY107: 35.9386535 | AZ107: -0.3417967 | BB107: 0.6083129456 | BC107: -0.000793456625
AB108: 106 | AC108: 0.25 | AD108: 0.05 | AF108: 191.05 | AG108: -1.8 | AI108: 106.25 | AJ108: -1 | AK108: 106.05 | AL108: -1 | AM108: 297.1 | AN108: -2.8 | AP108: 0.301757786 | AQ108: -0.000488281 | AR108: 0.101757786 | AS108: -0.000488281 | AT108: 0.05 | AU108: 0 | AW108: 36.4804502 | AX108: -0.3417967 | AY108: 36.2804502 | AZ108: -0.3417967 | BB108: 0.6091064023 | BC108: -0.000793456625
AB109: 107 | AC109: 0.25 | AD109: 0.05 | AF109: 192.85 | AG109: -1.8 | AI109: 107.25 | AJ109: -1 | AK109: 107.05 | AL109: -1 | AM109: 299.9 | AN109: -2.8 | AP109: 0.302246067 | AQ109: -0.000488281 | AR109: 0.102246067 | AS109: -0.000488281 | AT109: 0.05 | AU109: 0 | AW109: 36.8222469 | AX109: -0.3417967 | AY109: 36.6222469 | AZ109: -0.3417967 | BB109: 0.6098998589 | BC109: -0.000793456625
AB110: 108 | AC110: 0.25 | AD110: 0.05 | AF110: 194.65 | AG110: -1.8 | AI110: 108.25 | AJ110: -1 | AK110: 108.05 | AL110: -1 | AM110: 302.7 | AN110: -2.8 | AP110: 0.302734348 | AQ110: -0.000488281 | AR110: 0.102734348 | AS110: -0.000488281 | AT110: 0.05 | AU110: 0 | AW110: 37.1640436 | AX110: -0.3417967 | AY110: 36.9640436 | AZ110: -0.3417967 | BB110: 0.6106933155 | BC110: -0.000793456625
AB111: 109 | AC111: 0.25 | AD111: 0.05 | AF111: 196.45 | AG111: -1.8 | AI111: 109.25 | AJ111: -1 | AK111: 109.05 | AL111: -1 | AM111: 305.5 | AN111: -2.8 | AP111: 0.303222629 | AQ111: -0.000488281 | AR111: 0.103222629 | AS111: -0.000488281 | AT111: 0.05 | AU111: 0 | AW111: 37.5058403 | AX111: -0.3417967 | AY111: 37.3058403 | AZ111: -0.3417967 | BB111: 0.6114867721 | BC111: -0.000793456625
AB112: 110 | AC112: 0.25 | AD112: 0.05 | AF112: 198.25 | AG112: -1.8 | AI112: 110.25 | AJ112: -1 | AK112: 110.05 | AL112: -1 | AM112: 308.3 | AN112: -2.8 | AP112: 0.30371091 | AQ112: -0.000488281 | AR112: 0.10371091 | AS112: -0.000488281 | AT112: 0.05 | AU112: 0 | AW112: 37.847637 | AX112: -0.3417967 | AY112: 37.647637 | AZ112: -0.3417967 | BB112: 0.6122802287 | BC112: -0.000793456625
AB113: 111 | AC113: 0.25 | AD113: 0.05 | AF113: 200.05 | AG113: -1.8 | AI113: 111.25 | AJ113: -1 | AK113: 111.05 | AL113: -1 | AM113: 311.1 | AN113: -2.8 | AP113: 0.304199191 | AQ113: -0.000488281 | AR113: 0.104199191 | AS113: -0.000488281 | AT113: 0.05 | AU113: 0 | AW113: 38.1894337 | AX113: -0.3417967 | AY113: 37.9894337 | AZ113: -0.3417967 | BB113: 0.6130736854 | BC113: -0.000793456625
AB114: 112 | AC114: 0.25 | AD114: 0.05 | AF114: 201.85 | AG114: -1.8 | AI114: 112.25 | AJ114: -1 | AK114: 112.05 | AL114: -1 | AM114: 313.9 | AN114: -2.8 | AP114: 0.304687472 | AQ114: -0.000488281 | AR114: 0.104687472 | AS114: -0.000488281 | AT114: 0.05 | AU114: 0 | AW114: 38.5312304 | AX114: -0.3417967 | AY114: 38.3312304 | AZ114: -0.3417967 | BB114: 0.613867142 | BC114: -0.000793456625
AB115: 113 | AC115: 0.25 | AD115: 0.05 | AF115: 203.65 | AG115: -1.8 | AI115: 113.25 | AJ115: -1 | AK115: 113.05 | AL115: -1 | AM115: 316.7 | AN115: -2.8 | AP115: 0.305175753 | AQ115: -0.000488281 | AR115: 0.105175753 | AS115: -0.000488281 | AT115: 0.05 | AU115: 0 | AW115: 38.8730271 | AX115: -0.3417967 | AY115: 38.6730271 | AZ115: -0.3417967 | BB115: 0.6146605986 | BC115: -0.000793456625
AB116: 114 | AC116: 0.25 | AD116: 0.05 | AF116: 205.45 | AG116: -1.8 | AI116: 114.25 | AJ116: -1 | AK116: 114.05 | AL116: -1 | AM116: 319.5 | AN116: -2.8 | AP116: 0.305664034 | AQ116: -0.000488281 | AR116: 0.105664034 | AS116: -0.000488281 | AT116: 0.05 | AU116: 0 | AW116: 39.2148238 | AX116: -0.3417967 | AY116: 39.0148238 | AZ116: -0.3417967 | BB116: 0.6154540553 | BC116: -0.000793456625
AB117: 115 | AC117: 0.25 | AD117: 0.05 | AF117: 207.25 | AG117: -1.8 | AI117: 115.25 | AJ117: -1 | AK117: 115.05 | AL117: -1 | AM117: 322.3 | AN117: -2.8 | AP117: 0.306152315 | AQ117: -0.000488281 | AR117: 0.106152315 | AS117: -0.000488281 | AT117: 0.05 | AU117: 0 | AW117: 39.5566205 | AX117: -0.3417967 | AY117: 39.3566205 | AZ117: -0.3417967 | BB117: 0.6162475119 | BC117: -0.000793456625
AB118: 116 | AC118: 0.25 | AD118: 0.05 | AF118: 209.05 | AG118: -1.8 | AI118: 116.25 | AJ118: -1 | AK118: 116.05 | AL118: -1 | AM118: 325.1 | AN118: -2.8 | AP118: 0.306640596 | AQ118: -0.000488281 | AR118: 0.106640596 | AS118: -0.000488281 | AT118: 0.05 | AU118: 0 | AW118: 39.8984172 | AX118: -0.3417967 | AY118: 39.6984172 | AZ118: -0.3417967 | BB118: 0.6170409685 | BC118: -0.000793456625
AB119: 117 | AC119: 0.25 | AD119: 0.05 | AF119: 210.85 | AG119: -1.8 | AI119: 117.25 | AJ119: -1 | AK119: 117.05 | AL119: -1 | AM119: 327.9 | AN119: -2.8 | AP119: 0.307128877 | AQ119: -0.000488281 | AR119: 0.107128877 | AS119: -0.000488281 | AT119: 0.05 | AU119: 0 | AW119: 40.2402139 | AX119: -0.3417967 | AY119: 40.0402139 | AZ119: -0.3417967 | BB119: 0.6178344251 | BC119: -0.000793456625
AB120: 118 | AC120: 0.25 | AD120: 0.05 | AF120: 212.65 | AG120: -1.8 | AI120: 118.25 | AJ120: -1 | AK120: 118.05 | AL120: -1 | AM120: 330.7 | AN120: -2.8 | AP120: 0.307617158 | AQ120: -0.000488281 | AR120: 0.107617158 | AS120: -0.000488281 | AT120: 0.05 | AU120: 0 | AW120: 40.5820106 | AX120: -0.3417967 | AY120: 40.3820106 | AZ120: -0.3417967 | BB120: 0.6186278818 | BC120: -0.000793456625
AB121: 119 | AC121: 0.25 | AD121: 0.05 | AF121: 214.45 | AG121: -1.8 | AI121: 119.25 | AJ121: -1 | AK121: 119.05 | AL121: -1 | AM121: 333.5 | AN121: -2.8 | AP121: 0.308105439 | AQ121: -0.000488281 | AR121: 0.108105439 | AS121: -0.000488281 | AT121: 0.05 | AU121: 0 | AW121: 40.9238073 | AX121: -0.3417967 | AY121: 40.7238073 | AZ121: -0.3417967 | BB121: 0.6194213384 | BC121: -0.000793456625
AB122: 120 | AC122: 0.25 | AD122: 0.05 | AF122: 216.25 | AG122: -1.8 | AI122: 120.25 | AJ122: -1 | AK122: 120.05 | AL122: -1 | AM122: 336.3 | AN122: -2.8 | AP122: 0.30859372 | AQ122: -0.000488281 | AR122: 0.10859372 | AS122: -0.000488281 | AT122: 0.05 | AU122: 0 | AW122: 41.265604 | AX122: -0.3417967 | AY122: 41.065604 | AZ122: -0.3417967 | BB122: 0.620214795 | BC122: -0.000793456625
AB123: 121 | AC123: 0.25 | AD123: 0.05 | AF123: 218.05 | AG123: -1.8 | AI123: 121.25 | AJ123: -1 | AK123: 121.05 | AL123: -1 | AM123: 339.1 | AN123: -2.8 | AP123: 0.309082001 | AQ123: -0.000488281 | AR123: 0.109082001 | AS123: -0.000488281 | AT123: 0.05 | AU123: 0 | AW123: 41.6074007 | AX123: -0.3417967 | AY123: 41.4074007 | AZ123: -0.3417967 | BB123: 0.6210082516 | BC123: -0.000793456625
AB124: 122 | AC124: 0.25 | AD124: 0.05 | AF124: 219.85 | AG124: -1.8 | AI124: 122.25 | AJ124: -1 | AK124: 122.05 | AL124: -1 | AM124: 341.9 | AN124: -2.8 | AP124: 0.309570282 | AQ124: -0.000488281 | AR124: 0.109570282 | AS124: -0.000488281 | AT124: 0.05 | AU124: 0 | AW124: 41.9491974 | AX124: -0.3417967 | AY124: 41.7491974 | AZ124: -0.3417967 | BB124: 0.6218017083 | BC124: -0.000793456625
AB125: 123 | AC125: 0.25 | AD125: 0.05 | AF125: 221.65 | AG125: -1.8 | AI125: 123.25 | AJ125: -1 | AK125: 123.05 | AL125: -1 | AM125: 344.7 | AN125: -2.8 | AP125: 0.310058563 | AQ125: -0.000488281 | AR125: 0.110058563 | AS125: -0.000488281 | AT125: 0.05 | AU125: 0 | AW125: 42.2909941 | AX125: -0.3417967 | AY125: 42.0909941 | AZ125: -0.3417967 | BB125: 0.6225951649 | BC125: -0.000793456625
AB126: 124 | AC126: 0.25 | AD126: 0.05 | AF126: 223.45 | AG126: -1.8 | AI126: 124.25 | AJ126: -1 | AK126: 124.05 | AL126: -1 | AM126: 347.5 | AN126: -2.8 | AP126: 0.310546844 | AQ126: -0.000488281 | AR126: 0.110546844 | AS126: -0.000488281 | AT126: 0.05 | AU126: 0 | AW126: 42.6327908 | AX126: -0.3417967 | AY126: 42.4327908 | AZ126: -0.3417967 | BB126: 0.6233886215 | BC126: -0.000793456625
AB127: 125 | AC127: 0.25 | AD127: 0.05 | AF127: 225.25 | AG127: -1.8 | AI127: 125.25 | AJ127: -1 | AK127: 125.05 | AL127: -1 | AM127: 350.3 | AN127: -2.8 | AP127: 0.311035125 | AQ127: -0.000488281 | AR127: 0.111035125 | AS127: -0.000488281 | AT127: 0.05 | AU127: 0 | AW127: 42.9745875 | AX127: -0.3417967 | AY127: 42.7745875 | AZ127: -0.3417967 | BB127: 0.6241820781 | BC127: -0.000793456625
AB128: 126 | AC128: 0.25 | AD128: 0.05 | AF128: 227.05 | AG128: -1.8 | AI128: 126.25 | AJ128: -1 | AK128: 126.05 | AL128: -1 | AM128: 353.1 | AN128: -2.8 | AP128: 0.311523406 | AQ128: -0.000488281 | AR128: 0.111523406 | AS128: -0.000488281 | AT128: 0.05 | AU128: 0 | AW128: 43.3163842 | AX128: -0.3417967 | AY128: 43.1163842 | AZ128: -0.3417967 | BB128: 0.6249755348 | BC128: -0.000793456625
AB129: 127 | AC129: 0.25 | AD129: 0.05 | AF129: 228.85 | AG129: -1.8 | AI129: 127.25 | AJ129: -1 | AK129: 127.05 | AL129: -1 | AM129: 355.9 | AN129: -2.8 | AP129: 0.312011687 | AQ129: -0.000488281 | AR129: 0.112011687 | AS129: -0.000488281 | AT129: 0.05 | AU129: 0 | AW129: 43.6581809 | AX129: -0.3417967 | AY129: 43.4581809 | AZ129: -0.3417967 | BB129: 0.6257689914 | BC129: -0.000793456625
AB130: 128 | AC130: 0.25 | AD130: 0.05 | AF130: 230.65 | AG130: -1.8 | AI130: 128.25 | AJ130: -1 | AK130: 128.05 | AL130: -1 | AM130: =AF130+AK130 -> 358.7 | AN130: -2.8 | AP130: 0.312499968 | AQ130: -0.000488281 | AR130: 0.112499968 | AS130: -0.000488281 | AT130: 0.05 | AU130: 0 | AW130: 43.9999776 | AX130: -0.3417967 | AY130: 43.7999776 | AZ130: -0.3417967 | BB130: 0.626562448 | BC130: -0.000793456625
AB131: 129 | AC131: 0.25 | AD131: 0.05 | AF131: 232.45 | AG131: =AF130-AF131 -> -1.8 | AI131: 129.25 | AJ131: -1 | AK131: 129.05 | AL131: -1 | AM131: 361.5 | AN131: -2.8 | AP131: 0.312988249 | AQ131: -0.000488281 | AR131: 0.112988249 | AS131: -0.000488281 | AT131: 0.05 | AU131: 0 | AW131: 44.3417743 | AX131: -0.3417967 | AY131: 44.1417743 | AZ131: -0.3417967 | BB131: 0.6273559046 | BC131: -0.000793456625
AB132: 130 | AC132: 0.25 | AD132: 0.05 | AF132: 234.25 | AG132: -1.8 | AI132: 130.25 | AJ132: =AI131-AI132 -> -1 | AK132: =$AD132+(($AB132*$W$2)*$L$2/($S$2*$T$2)*$U$2) -> 130.05 | AL132: -1 | AM132: 364.3 | AN132: -2.8 | AP132: =$AC132+(($AB132*$X$2)*($O$2/($R$2*$T$2))) -> 0.31347653 | AQ132: -0.000488281 | AR132: 0.11347653 | AS132: -0.000488281 | AT132: =AD132 -> 0.05 | AU132: 0 | AW132: 44.683571 | AX132: -0.3417967 | AY132: =$AD132+(($AB132*$W$2)*$M$2/($S$2*$T$2)*$U$2) -> 44.483571 | AZ132: -0.3417967 | BB132: =$AC132+(($AB132*$X$2)*(($O$2+$P$2)/($R$2*$T$2)))+($G$2*1) -> 0.6281493612 | BC132: -0.000793456625
AB133: 131 | AC133: =IF($AB133<$Y$4,$Y$2,(IF(($AC132-$Y$3)>0,$AC132-$Y$3,0))) -> 0.25 | AD133: =IF($AB133<$AA$4,$AA$2,(IF(($AD132-$AA$3)>0,$AD132-$AA$3,0))) -> 0.05 | AF133: =$AC133+(($AB133*$W$2)*$K$2/($Q$2*$T$2)) -> 236.05 | AG133: -1.8 | AI133: =$AC133+(($AB133*$W$2)*$L$2/($Q$2*$T$2)) -> 131.25 | AJ133: =AI132-AI133 -> -1 | AK133: 131.05 | AL133: -1 | AM133: 367.1 | AN133: -2.8 | AP133: 0.313964811 | AQ133: =AP132-AP133 -> -0.000488281 | AR133: 0.113964811 | AS133: -0.000488281 | AT133: 0.05 | AU133: 0 | AW133: =$AC133+(($AB133*$W$2)*$M$2/($Q$2*$T$2)) -> 45.0253677 | AX133: =AW132-AW133 -> -0.3417967 | AY133: 44.8253677 | AZ133: =AY132-AY133 -> -0.3417967 | BB133: 0.6289428179 | BC133: =BB132-BB133 -> -0.000793456625
AB134: 132 | AC134: 0.25 | AD134: 0.05 | AF134: 237.85 | AG134: -1.8 | AI134: 132.25 | AJ134: -1 | AK134: 132.05 | AL134: -1 | AM134: 369.9 | AN134: -2.8 | AP134: 0.314453092 | AQ134: -0.000488281 | AR134: 0.114453092 | AS134: -0.000488281 | AT134: 0.05 | AU134: 0 | AW134: 45.3671644 | AX134: -0.3417967 | AY134: 45.1671644 | AZ134: -0.3417967 | BB134: 0.6297362745 | BC134: -0.000793456625
AB135: 133 | AC135: 0.25 | AD135: 0.05 | AF135: 239.65 | AG135: -1.8 | AI135: 133.25 | AJ135: -1 | AK135: 133.05 | AL135: -1 | AM135: 372.7 | AN135: -2.8 | AP135: 0.314941373 | AQ135: -0.000488281 | AR135: 0.114941373 | AS135: -0.000488281 | AT135: 0.05 | AU135: 0 | AW135: 45.7089611 | AX135: -0.3417967 | AY135: 45.5089611 | AZ135: -0.3417967 | BB135: 0.6305297311 | BC135: -0.000793456625
AB136: 134 | AC136: 0.25 | AD136: 0.05 | AF136: 241.45 | AG136: -1.8 | AI136: 134.25 | AJ136: -1 | AK136: 134.05 | AL136: -1 | AM136: 375.5 | AN136: -2.8 | AP136: 0.315429654 | AQ136: -0.000488281 | AR136: 0.115429654 | AS136: -0.000488281 | AT136: 0.05 | AU136: 0 | AW136: 46.0507578 | AX136: -0.3417967 | AY136: 45.8507578 | AZ136: -0.3417967 | BB136: 0.6313231878 | BC136: -0.000793456625
AB137: 135 | AC137: 0.25 | AD137: 0.05 | AF137: 243.25 | AG137: -1.8 | AI137: 135.25 | AJ137: -1 | AK137: 135.05 | AL137: -1 | AM137: 378.3 | AN137: -2.8 | AP137: 0.315917935 | AQ137: -0.000488281 | AR137: 0.115917935 | AS137: -0.000488281 | AT137: 0.05 | AU137: 0 | AW137: 46.3925545 | AX137: -0.3417967 | AY137: 46.1925545 | AZ137: -0.3417967 | BB137: 0.6321166444 | BC137: -0.000793456625
AB138: 136 | AC138: 0.25 | AD138: 0.05 | AF138: 245.05 | AG138: -1.8 | AI138: 136.25 | AJ138: -1 | AK138: 136.05 | AL138: -1 | AM138: 381.1 | AN138: -2.8 | AP138: 0.316406216 | AQ138: -0.000488281 | AR138: =$AD138+(($AB138*$X$2)*$O$2/($S$2*$T$2)*$V$2) -> 0.116406216 | AS138: -0.000488281 | AT138: 0.05 | AU138: 0 | AW138: 46.7343512 | AX138: -0.3417967 | AY138: 46.5343512 | AZ138: -0.3417967 | BB138: 0.632910101 | BC138: -0.000793456625
AB139: 137 | AC139: 0.25 | AD139: 0.05 | AF139: 246.85 | AG139: -1.8 | AI139: 137.25 | AJ139: -1 | AK139: 137.05 | AL139: -1 | AM139: 383.9 | AN139: -2.8 | AP139: 0.316894497 | AQ139: -0.000488281 | AR139: 0.116894497 | AS139: -0.000488281 | AT139: 0.05 | AU139: 0 | AW139: 47.0761479 | AX139: -0.3417967 | AY139: 46.8761479 | AZ139: -0.3417967 | BB139: 0.6337035576 | BC139: -0.000793456625
AB140: 138 | AC140: 0.25 | AD140: 0.05 | AF140: 248.65 | AG140: -1.8 | AI140: 138.25 | AJ140: -1 | AK140: 138.05 | AL140: -1 | AM140: 386.7 | AN140: -2.8 | AP140: 0.317382778 | AQ140: -0.000488281 | AR140: 0.117382778 | AS140: -0.000488281 | AT140: 0.05 | AU140: 0 | AW140: 47.4179446 | AX140: -0.3417967 | AY140: 47.2179446 | AZ140: -0.3417967 | BB140: 0.6344970143 | BC140: -0.000793456625
AB141: 139 | AC141: 0.25 | AD141: 0.05 | AF141: 250.45 | AG141: -1.8 | AI141: 139.25 | AJ141: -1 | AK141: 139.05 | AL141: -1 | AM141: 389.5 | AN141: -2.8 | AP141: 0.317871059 | AQ141: -0.000488281 | AR141: 0.117871059 | AS141: -0.000488281 | AT141: 0.05 | AU141: 0 | AW141: 47.7597413 | AX141: -0.3417967 | AY141: 47.5597413 | AZ141: -0.3417967 | BB141: 0.6352904709 | BC141: -0.000793456625
AB142: 140 | AC142: 0.25 | AD142: 0.05 | AF142: 252.25 | AG142: -1.8 | AI142: 140.25 | AJ142: -1 | AK142: 140.05 | AL142: -1 | AM142: 392.3 | AN142: -2.8 | AP142: 0.31835934 | AQ142: -0.000488281 | AR142: 0.11835934 | AS142: -0.000488281 | AT142: 0.05 | AU142: 0 | AW142: 48.101538 | AX142: -0.3417967 | AY142: 47.901538 | AZ142: -0.3417967 | BB142: 0.6360839275 | BC142: -0.000793456625
AB143: 141 | AC143: 0.25 | AD143: 0.05 | AF143: 254.05 | AG143: -1.8 | AI143: 141.25 | AJ143: -1 | AK143: 141.05 | AL143: -1 | AM143: 395.1 | AN143: -2.8 | AP143: 0.318847621 | AQ143: -0.000488281 | AR143: 0.118847621 | AS143: -0.000488281 | AT143: 0.05 | AU143: 0 | AW143: 48.4433347 | AX143: -0.3417967 | AY143: 48.2433347 | AZ143: -0.3417967 | BB143: 0.6368773841 | BC143: -0.000793456625
AB144: 142 | AC144: 0.25 | AD144: 0.05 | AF144: 255.85 | AG144: -1.8 | AI144: 142.25 | AJ144: -1 | AK144: 142.05 | AL144: -1 | AM144: 397.9 | AN144: -2.8 | AP144: 0.319335902 | AQ144: -0.000488281 | AR144: 0.119335902 | AS144: -0.000488281 | AT144: 0.05 | AU144: 0 | AW144: 48.7851314 | AX144: -0.3417967 | AY144: 48.5851314 | AZ144: -0.3417967 | BB144: 0.6376708408 | BC144: -0.000793456625
AB145: 143 | AC145: 0.25 | AD145: 0.05 | AF145: 257.65 | AG145: -1.8 | AI145: 143.25 | AJ145: -1 | AK145: 143.05 | AL145: -1 | AM145: 400.7 | AN145: -2.8 | AP145: 0.319824183 | AQ145: -0.000488281 | AR145: 0.119824183 | AS145: -0.000488281 | AT145: 0.05 | AU145: 0 | AW145: 49.1269281 | AX145: -0.3417967 | AY145: 48.9269281 | AZ145: -0.3417967 | BB145: 0.6384642974 | BC145: -0.000793456625
AB146: 144 | AC146: 0.25 | AD146: 0.05 | AF146: 259.45 | AG146: -1.8 | AI146: 144.25 | AJ146: -1 | AK146: 144.05 | AL146: -1 | AM146: 403.5 | AN146: -2.8 | AP146: 0.320312464 | AQ146: -0.000488281 | AR146: 0.120312464 | AS146: -0.000488281 | AT146: 0.05 | AU146: 0 | AW146: 49.4687248 | AX146: -0.3417967 | AY146: 49.2687248 | AZ146: -0.3417967 | BB146: 0.639257754 | BC146: -0.000793456625
AB147: 145 | AC147: 0.25 | AD147: 0.05 | AF147: 261.25 | AG147: -1.8 | AI147: 145.25 | AJ147: -1 | AK147: 145.05 | AL147: -1 | AM147: 406.3 | AN147: -2.8 | AP147: 0.320800745 | AQ147: -0.000488281 | AR147: 0.120800745 | AS147: -0.000488281 | AT147: 0.05 | AU147: 0 | AW147: 49.8105215 | AX147: -0.3417967 | AY147: 49.6105215 | AZ147: -0.3417967 | BB147: 0.6400512106 | BC147: -0.000793456625
AB148: 146 | AC148: 0.25 | AD148: 0.05 | AF148: 263.05 | AG148: -1.8 | AI148: 146.25 | AJ148: -1 | AK148: 146.05 | AL148: -1 | AM148: 409.1 | AN148: -2.8 | AP148: 0.321289026 | AQ148: -0.000488281 | AR148: 0.121289026 | AS148: -0.000488281 | AT148: 0.05 | AU148: 0 | AW148: 50.1523182 | AX148: -0.3417967 | AY148: 49.9523182 | AZ148: -0.3417967 | BB148: 0.6408446673 | BC148: -0.000793456625
AB149: 147 | AC149: 0.25 | AD149: 0.05 | AF149: 264.85 | AG149: -1.8 | AI149: 147.25 | AJ149: -1 | AK149: 147.05 | AL149: -1 | AM149: 411.9 | AN149: -2.8 | AP149: 0.321777307 | AQ149: -0.000488281 | AR149: 0.121777307 | AS149: -0.000488281 | AT149: 0.05 | AU149: 0 | AW149: 50.4941149 | AX149: -0.3417967 | AY149: 50.2941149 | AZ149: -0.3417967 | BB149: 0.6416381239 | BC149: -0.000793456625
AB150: 148 | AC150: 0.25 | AD150: 0.05 | AF150: 266.65 | AG150: -1.8 | AI150: 148.25 | AJ150: -1 | AK150: 148.05 | AL150: -1 | AM150: 414.7 | AN150: -2.8 | AP150: 0.322265588 | AQ150: -0.000488281 | AR150: 0.122265588 | AS150: -0.000488281 | AT150: 0.05 | AU150: 0 | AW150: 50.8359116 | AX150: -0.3417967 | AY150: 50.6359116 | AZ150: -0.3417967 | BB150: 0.6424315805 | BC150: -0.000793456625
AB151: 149 | AC151: 0.25 | AD151: 0.05 | AF151: 268.45 | AG151: -1.8 | AI151: 149.25 | AJ151: -1 | AK151: 149.05 | AL151: -1 | AM151: 417.5 | AN151: -2.8 | AP151: 0.322753869 | AQ151: -0.000488281 | AR151: 0.122753869 | AS151: -0.000488281 | AT151: 0.05 | AU151: 0 | AW151: 51.1777083 | AX151: -0.3417967 | AY151: 50.9777083 | AZ151: -0.3417967 | BB151: 0.6432250371 | BC151: -0.000793456625
AB152: 150 | AC152: 0.25 | AD152: 0.05 | AF152: 270.25 | AG152: -1.8 | AI152: 150.25 | AJ152: -1 | AK152: 150.05 | AL152: -1 | AM152: 420.3 | AN152: -2.8 | AP152: 0.32324215 | AQ152: -0.000488281 | AR152: 0.12324215 | AS152: -0.000488281 | AT152: 0.05 | AU152: 0 | AW152: 51.519505 | AX152: -0.3417967 | AY152: 51.319505 | AZ152: -0.3417967 | BB152: 0.6440184937 | BC152: -0.000793456625
AB153: 151 | AC153: 0.25 | AD153: 0.05 | AF153: 272.05 | AG153: -1.8 | AI153: 151.25 | AJ153: -1 | AK153: 151.05 | AL153: -1 | AM153: 423.1 | AN153: -2.8 | AP153: 0.323730431 | AQ153: -0.000488281 | AR153: 0.123730431 | AS153: -0.000488281 | AT153: 0.05 | AU153: 0 | AW153: 51.8613017 | AX153: -0.3417967 | AY153: 51.6613017 | AZ153: -0.3417967 | BB153: 0.6448119504 | BC153: -0.000793456625
AB154: 152 | AC154: 0.25 | AD154: 0.05 | AF154: 273.85 | AG154: -1.8 | AI154: 152.25 | AJ154: -1 | AK154: 152.05 | AL154: -1 | AM154: 425.9 | AN154: -2.8 | AP154: 0.324218712 | AQ154: -0.000488281 | AR154: 0.124218712 | AS154: -0.000488281 | AT154: 0.05 | AU154: 0 | AW154: 52.2030984 | AX154: -0.3417967 | AY154: 52.0030984 | AZ154: -0.3417967 | BB154: 0.645605407 | BC154: -0.000793456625
AB155: 153 | AC155: 0.25 | AD155: 0.05 | AF155: 275.65 | AG155: -1.8 | AI155: 153.25 | AJ155: -1 | AK155: 153.05 | AL155: -1 | AM155: 428.7 | AN155: -2.8 | AP155: 0.324706993 | AQ155: -0.000488281 | AR155: 0.124706993 | AS155: -0.000488281 | AT155: 0.05 | AU155: 0 | AW155: 52.5448951 | AX155: -0.3417967 | AY155: 52.3448951 | AZ155: -0.3417967 | BB155: 0.6463988636 | BC155: -0.000793456625
AB156: 154 | AC156: 0.25 | AD156: 0.05 | AF156: 277.45 | AG156: -1.8 | AI156: 154.25 | AJ156: -1 | AK156: 154.05 | AL156: -1 | AM156: 431.5 | AN156: -2.8 | AP156: 0.325195274 | AQ156: -0.000488281 | AR156: 0.125195274 | AS156: -0.000488281 | AT156: 0.05 | AU156: 0 | AW156: 52.8866918 | AX156: -0.3417967 | AY156: 52.6866918 | AZ156: -0.3417967 | BB156: 0.6471923203 | BC156: -0.000793456625
AB157: 155 | AC157: 0.25 | AD157: 0.05 | AF157: 279.25 | AG157: -1.8 | AI157: 155.25 | AJ157: -1 | AK157: 155.05 | AL157: -1 | AM157: 434.3 | AN157: -2.8 | AP157: 0.325683555 | AQ157: -0.000488281 | AR157: 0.125683555 | AS157: -0.000488281 | AT157: 0.05 | AU157: 0 | AW157: 53.2284885 | AX157: -0.3417967 | AY157: 53.0284885 | AZ157: -0.3417967 | BB157: 0.6479857769 | BC157: -0.000793456625
AB158: 156 | AC158: 0.25 | AD158: 0.05 | AF158: 281.05 | AG158: -1.8 | AI158: 156.25 | AJ158: -1 | AK158: 156.05 | AL158: -1 | AM158: 437.1 | AN158: -2.8 | AP158: 0.326171836 | AQ158: -0.000488281 | AR158: 0.126171836 | AS158: -0.000488281 | AT158: 0.05 | AU158: 0 | AW158: 53.5702852 | AX158: -0.3417967 | AY158: 53.3702852 | AZ158: -0.3417967 | BB158: 0.6487792335 | BC158: -0.000793456625
AB159: 157 | AC159: 0.25 | AD159: 0.05 | AF159: 282.85 | AG159: -1.8 | AI159: 157.25 | AJ159: -1 | AK159: 157.05 | AL159: -1 | AM159: 439.9 | AN159: -2.8 | AP159: 0.326660117 | AQ159: -0.000488281 | AR159: 0.126660117 | AS159: -0.000488281 | AT159: 0.05 | AU159: 0 | AW159: 53.9120819 | AX159: -0.3417967 | AY159: 53.7120819 | AZ159: -0.3417967 | BB159: 0.6495726901 | BC159: -0.000793456625
AB160: 158 | AC160: 0.25 | AD160: 0.05 | AF160: 284.65 | AG160: -1.8 | AI160: 158.25 | AJ160: -1 | AK160: 158.05 | AL160: -1 | AM160: 442.7 | AN160: -2.8 | AP160: 0.327148398 | AQ160: -0.000488281 | AR160: 0.127148398 | AS160: -0.000488281 | AT160: 0.05 | AU160: 0 | AW160: 54.2538786 | AX160: -0.3417967 | AY160: 54.0538786 | AZ160: -0.3417967 | BB160: 0.6503661468 | BC160: -0.000793456625
AB161: 159 | AC161: 0.25 | AD161: 0.05 | AF161: 286.45 | AG161: -1.8 | AI161: 159.25 | AJ161: -1 | AK161: 159.05 | AL161: -1 | AM161: 445.5 | AN161: -2.8 | AP161: 0.327636679 | AQ161: -0.000488281 | AR161: 0.127636679 | AS161: -0.000488281 | AT161: 0.05 | AU161: 0 | AW161: 54.5956753 | AX161: -0.3417967 | AY161: 54.3956753 | AZ161: -0.3417967 | BB161: 0.6511596034 | BC161: -0.000793456625
AB162: 160 | AC162: 0.25 | AD162: 0.05 | AF162: 288.25 | AG162: -1.8 | AI162: 160.25 | AJ162: -1 | AK162: 160.05 | AL162: -1 | AM162: 448.3 | AN162: -2.8 | AP162: 0.32812496 | AQ162: -0.000488281 | AR162: 0.12812496 | AS162: -0.000488281 | AT162: 0.05 | AU162: 0 | AW162: 54.937472 | AX162: -0.3417967 | AY162: 54.737472 | AZ162: -0.3417967 | BB162: 0.65195306 | BC162: -0.000793456625
AB163: 161 | AC163: 0.25 | AD163: 0.05 | AF163: 290.05 | AG163: -1.8 | AI163: 161.25 | AJ163: -1 | AK163: 161.05 | AL163: -1 | AM163: 451.1 | AN163: -2.8 | AP163: 0.328613241 | AQ163: -0.000488281 | AR163: 0.128613241 | AS163: -0.000488281 | AT163: 0.05 | AU163: 0 | AW163: 55.2792687 | AX163: -0.3417967 | AY163: 55.0792687 | AZ163: -0.3417967 | BB163: 0.6527465166 | BC163: -0.000793456625
AB164: 162 | AC164: 0.25 | AD164: 0.05 | AF164: 291.85 | AG164: -1.8 | AI164: 162.25 | AJ164: -1 | AK164: 162.05 | AL164: -1 | AM164: 453.9 | AN164: -2.8 | AP164: 0.329101522 | AQ164: -0.000488281 | AR164: 0.129101522 | AS164: -0.000488281 | AT164: 0.05 | AU164: 0 | AW164: 55.6210654 | AX164: -0.3417967 | AY164: 55.4210654 | AZ164: -0.3417967 | BB164: 0.6535399733 | BC164: -0.000793456625
AB165: 163 | AC165: 0.25 | AD165: 0.05 | AF165: 293.65 | AG165: -1.8 | AI165: 163.25 | AJ165: -1 | AK165: 163.05 | AL165: -1 | AM165: 456.7 | AN165: -2.8 | AP165: 0.329589803 | AQ165: -0.000488281 | AR165: 0.129589803 | AS165: -0.000488281 | AT165: 0.05 | AU165: 0 | AW165: 55.9628621 | AX165: -0.3417967 | AY165: 55.7628621 | AZ165: -0.3417967 | BB165: 0.6543334299 | BC165: -0.000793456625
AB166: 164 | AC166: 0.25 | AD166: 0.05 | AF166: 295.45 | AG166: -1.8 | AI166: 164.25 | AJ166: -1 | AK166: 164.05 | AL166: -1 | AM166: 459.5 | AN166: -2.8 | AP166: 0.330078084 | AQ166: -0.000488281 | AR166: 0.130078084 | AS166: -0.000488281 | AT166: 0.05 | AU166: 0 | AW166: 56.3046588 | AX166: -0.3417967 | AY166: 56.1046588 | AZ166: -0.3417967 | BB166: 0.6551268865 | BC166: -0.000793456625
AB167: 165 | AC167: 0.25 | AD167: 0.05 | AF167: 297.25 | AG167: -1.8 | AI167: 165.25 | AJ167: -1 | AK167: 165.05 | AL167: -1 | AM167: 462.3 | AN167: -2.8 | AP167: 0.330566365 | AQ167: -0.000488281 | AR167: 0.130566365 | AS167: -0.000488281 | AT167: 0.05 | AU167: 0 | AW167: 56.6464555 | AX167: -0.3417967 | AY167: 56.4464555 | AZ167: -0.3417967 | BB167: 0.6559203431 | BC167: -0.000793456625
AB168: 166 | AC168: 0.25 | AD168: 0.05 | AF168: 299.05 | AG168: -1.8 | AI168: 166.25 | AJ168: -1 | AK168: 166.05 | AL168: -1 | AM168: 465.1 | AN168: -2.8 | AP168: 0.331054646 | AQ168: -0.000488281 | AR168: 0.131054646 | AS168: -0.000488281 | AT168: 0.05 | AU168: 0 | AW168: 56.9882522 | AX168: -0.3417967 | AY168: 56.7882522 | AZ168: -0.3417967 | BB168: 0.6567137998 | BC168: -0.000793456625
AB169: =AB168+1 -> 167 | AC169: 0.25 | AD169: 0.05 | AF169: 300.85 | AG169: -1.8 | AI169: 167.25 | AJ169: -1 | AK169: 167.05 | AL169: -1 | AM169: 467.9 | AN169: -2.8 | AP169: 0.331542927 | AQ169: -0.000488281 | AR169: 0.131542927 | AS169: -0.000488281 | AT169: 0.05 | AU169: 0 | AW169: 57.3300489 | AX169: -0.3417967 | AY169: 57.1300489 | AZ169: -0.3417967 | BB169: 0.6575072564 | BC169: -0.000793456625
AB170: 168 | AC170: 0.25 | AD170: 0.05 | AF170: 302.65 | AG170: -1.8 | AI170: 168.25 | AJ170: -1 | AK170: 168.05 | AL170: -1 | AM170: 470.7 | AN170: -2.8 | AP170: 0.332031208 | AQ170: -0.000488281 | AR170: 0.132031208 | AS170: -0.000488281 | AT170: 0.05 | AU170: 0 | AW170: 57.6718456 | AX170: -0.3417967 | AY170: 57.4718456 | AZ170: -0.3417967 | BB170: 0.658300713 | BC170: -0.000793456625
AB171: 169 | AC171: 0.25 | AD171: 0.05 | AF171: 304.45 | AG171: -1.8 | AI171: 169.25 | AJ171: -1 | AK171: 169.05 | AL171: -1 | AM171: 473.5 | AN171: -2.8 | AP171: 0.332519489 | AQ171: -0.000488281 | AR171: 0.132519489 | AS171: -0.000488281 | AT171: 0.05 | AU171: 0 | AW171: 58.0136423 | AX171: -0.3417967 | AY171: 57.8136423 | AZ171: -0.3417967 | BB171: 0.6590941696 | BC171: -0.000793456625
AB172: 170 | AC172: 0.25 | AD172: 0.05 | AF172: 306.25 | AG172: -1.8 | AI172: 170.25 | AJ172: -1 | AK172: 170.05 | AL172: -1 | AM172: 476.3 | AN172: -2.8 | AP172: 0.33300777 | AQ172: -0.000488281 | AR172: 0.13300777 | AS172: -0.000488281 | AT172: 0.05 | AU172: 0 | AW172: 58.355439 | AX172: -0.3417967 | AY172: 58.155439 | AZ172: -0.3417967 | BB172: 0.6598876262 | BC172: -0.000793456625
AB173: 171 | AC173: 0.25 | AD173: 0.05 | AF173: 308.05 | AG173: -1.8 | AI173: 171.25 | AJ173: -1 | AK173: 171.05 | AL173: -1 | AM173: 479.1 | AN173: -2.8 | AP173: 0.333496051 | AQ173: -0.000488281 | AR173: 0.133496051 | AS173: -0.000488281 | AT173: 0.05 | AU173: 0 | AW173: 58.6972357 | AX173: -0.3417967 | AY173: 58.4972357 | AZ173: -0.3417967 | BB173: 0.6606810829 | BC173: -0.000793456625
AB174: 172 | AC174: 0.25 | AD174: 0.05 | AF174: 309.85 | AG174: -1.8 | AI174: 172.25 | AJ174: -1 | AK174: 172.05 | AL174: -1 | AM174: 481.9 | AN174: -2.8 | AP174: 0.333984332 | AQ174: -0.000488281 | AR174: 0.133984332 | AS174: -0.000488281 | AT174: 0.05 | AU174: 0 | AW174: 59.0390324 | AX174: -0.3417967 | AY174: 58.8390324 | AZ174: -0.3417967 | BB174: 0.6614745395 | BC174: -0.000793456625
AB175: 173 | AC175: 0.25 | AD175: 0.05 | AF175: 311.65 | AG175: -1.8 | AI175: 173.25 | AJ175: -1 | AK175: 173.05 | AL175: -1 | AM175: 484.7 | AN175: -2.8 | AP175: 0.334472613 | AQ175: -0.000488281 | AR175: 0.134472613 | AS175: -0.000488281 | AT175: 0.05 | AU175: 0 | AW175: 59.3808291 | AX175: -0.3417967 | AY175: 59.1808291 | AZ175: -0.3417967 | BB175: 0.6622679961 | BC175: -0.000793456625
AB176: 174 | AC176: 0.25 | AD176: 0.05 | AF176: 313.45 | AG176: -1.8 | AI176: 174.25 | AJ176: -1 | AK176: 174.05 | AL176: -1 | AM176: 487.5 | AN176: -2.8 | AP176: 0.334960894 | AQ176: -0.000488281 | AR176: 0.134960894 | AS176: -0.000488281 | AT176: 0.05 | AU176: 0 | AW176: 59.7226258 | AX176: -0.3417967 | AY176: 59.5226258 | AZ176: -0.3417967 | BB176: 0.6630614528 | BC176: -0.000793456625
AB177: 175 | AC177: 0.25 | AD177: 0.05 | AF177: 315.25 | AG177: -1.8 | AI177: 175.25 | AJ177: -1 | AK177: 175.05 | AL177: -1 | AM177: 490.3 | AN177: -2.8 | AP177: 0.335449175 | AQ177: -0.000488281 | AR177: 0.135449175 | AS177: -0.000488281 | AT177: 0.05 | AU177: 0 | AW177: 60.0644225 | AX177: -0.3417967 | AY177: 59.8644225 | AZ177: -0.3417967 | BB177: 0.6638549094 | BC177: -0.000793456625
AB178: 176 | AC178: 0.25 | AD178: 0.05 | AF178: 317.05 | AG178: -1.8 | AI178: 176.25 | AJ178: -1 | AK178: 176.05 | AL178: -1 | AM178: 493.1 | AN178: -2.8 | AP178: 0.335937456 | AQ178: -0.000488281 | AR178: 0.135937456 | AS178: -0.000488281 | AT178: 0.05 | AU178: 0 | AW178: 60.4062192 | AX178: -0.3417967 | AY178: 60.2062192 | AZ178: -0.3417967 | BB178: 0.664648366 | BC178: -0.000793456625
AB179: 177 | AC179: 0.25 | AD179: 0.05 | AF179: 318.85 | AG179: -1.8 | AI179: 177.25 | AJ179: -1 | AK179: 177.05 | AL179: -1 | AM179: 495.9 | AN179: -2.8 | AP179: 0.336425737 | AQ179: -0.000488281 | AR179: 0.136425737 | AS179: -0.000488281 | AT179: 0.05 | AU179: 0 | AW179: 60.7480159 | AX179: -0.3417967 | AY179: 60.5480159 | AZ179: -0.3417967 | BB179: 0.6654418226 | BC179: -0.000793456625
AB180: 178 | AC180: 0.25 | AD180: 0.05 | AF180: 320.65 | AG180: -1.8 | AI180: 178.25 | AJ180: -1 | AK180: 178.05 | AL180: -1 | AM180: 498.7 | AN180: -2.8 | AP180: 0.336914018 | AQ180: -0.000488281 | AR180: 0.136914018 | AS180: -0.000488281 | AT180: 0.05 | AU180: 0 | AW180: 61.0898126 | AX180: -0.3417967 | AY180: 60.8898126 | AZ180: -0.3417967 | BB180: 0.6662352793 | BC180: -0.000793456625
AB181: 179 | AC181: 0.25 | AD181: 0.05 | AF181: 322.45 | AG181: -1.8 | AI181: 179.25 | AJ181: -1 | AK181: 179.05 | AL181: -1 | AM181: 501.5 | AN181: -2.8 | AP181: 0.337402299 | AQ181: -0.000488281 | AR181: 0.137402299 | AS181: -0.000488281 | AT181: 0.05 | AU181: 0 | AW181: 61.4316093 | AX181: -0.3417967 | AY181: 61.2316093 | AZ181: -0.3417967 | BB181: 0.6670287359 | BC181: -0.000793456625
AB182: 180 | AC182: 0.25 | AD182: 0.05 | AF182: 324.25 | AG182: -1.8 | AI182: 180.25 | AJ182: -1 | AK182: 180.05 | AL182: -1 | AM182: 504.3 | AN182: -2.8 | AP182: 0.33789058 | AQ182: -0.000488281 | AR182: 0.13789058 | AS182: -0.000488281 | AT182: 0.05 | AU182: 0 | AW182: 61.773406 | AX182: -0.3417967 | AY182: 61.573406 | AZ182: -0.3417967 | BB182: 0.6678221925 | BC182: -0.000793456625
AB183: 181 | AC183: 0.25 | AD183: 0.05 | AF183: 326.05 | AG183: -1.8 | AI183: 181.25 | AJ183: -1 | AK183: 181.05 | AL183: -1 | AM183: 507.1 | AN183: -2.8 | AP183: 0.338378861 | AQ183: -0.000488281 | AR183: 0.138378861 | AS183: -0.000488281 | AT183: 0.05 | AU183: 0 | AW183: 62.1152027 | AX183: -0.3417967 | AY183: 61.9152027 | AZ183: -0.3417967 | BB183: 0.6686156491 | BC183: -0.000793456625
AB184: 182 | AC184: 0.25 | AD184: 0.05 | AF184: 327.85 | AG184: -1.8 | AI184: 182.25 | AJ184: -1 | AK184: 182.05 | AL184: -1 | AM184: 509.9 | AN184: -2.8 | AP184: 0.338867142 | AQ184: -0.000488281 | AR184: 0.138867142 | AS184: -0.000488281 | AT184: 0.05 | AU184: 0 | AW184: 62.4569994 | AX184: -0.3417967 | AY184: 62.2569994 | AZ184: -0.3417967 | BB184: 0.6694091058 | BC184: -0.000793456625
AB185: 183 | AC185: 0.25 | AD185: 0.05 | AF185: 329.65 | AG185: -1.8 | AI185: 183.25 | AJ185: -1 | AK185: 183.05 | AL185: -1 | AM185: 512.7 | AN185: -2.8 | AP185: 0.339355423 | AQ185: -0.000488281 | AR185: 0.139355423 | AS185: -0.000488281 | AT185: 0.05 | AU185: 0 | AW185: 62.7987961 | AX185: -0.3417967 | AY185: 62.5987961 | AZ185: -0.3417967 | BB185: 0.6702025624 | BC185: -0.000793456625
AB186: 184 | AC186: 0.25 | AD186: 0.05 | AF186: 331.45 | AG186: -1.8 | AI186: 184.25 | AJ186: -1 | AK186: 184.05 | AL186: -1 | AM186: 515.5 | AN186: -2.8 | AP186: 0.339843704 | AQ186: -0.000488281 | AR186: 0.139843704 | AS186: -0.000488281 | AT186: 0.05 | AU186: 0 | AW186: 63.1405928 | AX186: -0.3417967 | AY186: 62.9405928 | AZ186: -0.3417967 | BB186: 0.670996019 | BC186: -0.000793456625
AB187: 185 | AC187: 0.25 | AD187: 0.05 | AF187: 333.25 | AG187: -1.8 | AI187: 185.25 | AJ187: -1 | AK187: 185.05 | AL187: -1 | AM187: 518.3 | AN187: -2.8 | AP187: 0.340331985 | AQ187: -0.000488281 | AR187: 0.140331985 | AS187: -0.000488281 | AT187: 0.05 | AU187: 0 | AW187: 63.4823895 | AX187: -0.3417967 | AY187: 63.2823895 | AZ187: -0.3417967 | BB187: 0.6717894756 | BC187: -0.000793456625
AB188: 186 | AC188: 0.25 | AD188: 0.05 | AF188: 335.05 | AG188: -1.8 | AI188: 186.25 | AJ188: -1 | AK188: 186.05 | AL188: -1 | AM188: 521.1 | AN188: -2.8 | AP188: 0.340820266 | AQ188: -0.000488281 | AR188: 0.140820266 | AS188: -0.000488281 | AT188: 0.05 | AU188: 0 | AW188: 63.8241862 | AX188: -0.3417967 | AY188: 63.6241862 | AZ188: -0.3417967 | BB188: 0.6725829323 | BC188: -0.000793456625
AB189: 187 | AC189: 0.25 | AD189: 0.05 | AF189: 336.85 | AG189: -1.8 | AI189: 187.25 | AJ189: -1 | AK189: 187.05 | AL189: -1 | AM189: 523.9 | AN189: -2.8 | AP189: 0.341308547 | AQ189: -0.000488281 | AR189: 0.141308547 | AS189: -0.000488281 | AT189: 0.05 | AU189: 0 | AW189: 64.1659829 | AX189: -0.3417967 | AY189: 63.9659829 | AZ189: -0.3417967 | BB189: 0.6733763889 | BC189: -0.000793456625
AB190: 188 | AC190: 0.25 | AD190: 0.05 | AF190: 338.65 | AG190: -1.8 | AI190: 188.25 | AJ190: -1 | AK190: 188.05 | AL190: -1 | AM190: 526.7 | AN190: -2.8 | AP190: 0.341796828 | AQ190: -0.000488281 | AR190: 0.141796828 | AS190: -0.000488281 | AT190: 0.05 | AU190: 0 | AW190: 64.5077796 | AX190: -0.3417967 | AY190: 64.3077796 | AZ190: -0.3417967 | BB190: 0.6741698455 | BC190: -0.000793456625
AB191: 189 | AC191: 0.25 | AD191: 0.05 | AF191: 340.45 | AG191: -1.8 | AI191: 189.25 | AJ191: -1 | AK191: 189.05 | AL191: -1 | AM191: 529.5 | AN191: -2.8 | AP191: 0.342285109 | AQ191: -0.000488281 | AR191: 0.142285109 | AS191: -0.000488281 | AT191: 0.05 | AU191: 0 | AW191: 64.8495763 | AX191: -0.3417967 | AY191: 64.6495763 | AZ191: -0.3417967 | BB191: 0.6749633021 | BC191: -0.000793456625
AB192: 190 | AC192: 0.25 | AD192: 0.05 | AF192: 342.25 | AG192: -1.8 | AI192: 190.25 | AJ192: -1 | AK192: 190.05 | AL192: -1 | AM192: 532.3 | AN192: -2.8 | AP192: 0.34277339 | AQ192: -0.000488281 | AR192: 0.14277339 | AS192: -0.000488281 | AT192: 0.05 | AU192: 0 | AW192: 65.191373 | AX192: -0.3417967 | AY192: 64.991373 | AZ192: -0.3417967 | BB192: 0.6757567587 | BC192: -0.000793456625
AB193: 191 | AC193: 0.25 | AD193: 0.05 | AF193: 344.05 | AG193: -1.8 | AI193: 191.25 | AJ193: -1 | AK193: 191.05 | AL193: -1 | AM193: 535.1 | AN193: -2.8 | AP193: 0.343261671 | AQ193: -0.000488281 | AR193: 0.143261671 | AS193: -0.000488281 | AT193: 0.05 | AU193: 0 | AW193: 65.5331697 | AX193: -0.3417967 | AY193: 65.3331697 | AZ193: -0.3417967 | BB193: 0.6765502154 | BC193: -0.000793456625
AB194: 192 | AC194: 0.25 | AD194: 0.05 | AF194: 345.85 | AG194: -1.8 | AI194: 192.25 | AJ194: -1 | AK194: 192.05 | AL194: -1 | AM194: =AF194+AK194 -> 537.9 | AN194: -2.8 | AP194: 0.343749952 | AQ194: -0.000488281 | AR194: 0.143749952 | AS194: -0.000488281 | AT194: 0.05 | AU194: 0 | AW194: 65.8749664 | AX194: -0.3417967 | AY194: 65.6749664 | AZ194: -0.3417967 | BB194: 0.677343672 | BC194: -0.000793456625
AB195: 193 | AC195: 0.25 | AD195: 0.05 | AF195: 347.65 | AG195: =AF194-AF195 -> -1.8 | AI195: 193.25 | AJ195: -1 | AK195: 193.05 | AL195: -1 | AM195: 540.7 | AN195: -2.8 | AP195: 0.344238233 | AQ195: -0.000488281 | AR195: 0.144238233 | AS195: -0.000488281 | AT195: 0.05 | AU195: 0 | AW195: 66.2167631 | AX195: -0.3417967 | AY195: 66.0167631 | AZ195: -0.3417967 | BB195: 0.6781371286 | BC195: -0.000793456625
AB196: 194 | AC196: 0.25 | AD196: 0.05 | AF196: 349.45 | AG196: -1.8 | AI196: 194.25 | AJ196: =AI195-AI196 -> -1 | AK196: =$AD196+(($AB196*$W$2)*$L$2/($S$2*$T$2)*$U$2) -> 194.05 | AL196: -1 | AM196: 543.5 | AN196: -2.8 | AP196: =$AC196+(($AB196*$X$2)*($O$2/($R$2*$T$2))) -> 0.344726514 | AQ196: -0.000488281 | AR196: 0.144726514 | AS196: -0.000488281 | AT196: =AD196 -> 0.05 | AU196: 0 | AW196: 66.5585598 | AX196: -0.3417967 | AY196: =$AD196+(($AB196*$W$2)*$M$2/($S$2*$T$2)*$U$2) -> 66.3585598 | AZ196: -0.3417967 | BB196: =$AC196+(($AB196*$X$2)*(($O$2+$P$2)/($R$2*$T$2)))+($G$2*1) -> 0.6789305853 | BC196: -0.000793456625
AB197: 195 | AC197: =IF($AB197<$Y$4,$Y$2,(IF(($AC196-$Y$3)>0,$AC196-$Y$3,0))) -> 0.25 | AD197: =IF($AB197<$AA$4,$AA$2,(IF(($AD196-$AA$3)>0,$AD196-$AA$3,0))) -> 0.05 | AF197: =$AC197+(($AB197*$W$2)*$K$2/($Q$2*$T$2)) -> 351.25 | AG197: -1.8 | AI197: =$AC197+(($AB197*$W$2)*$L$2/($Q$2*$T$2)) -> 195.25 | AJ197: =AI196-AI197 -> -1 | AK197: 195.05 | AL197: -1 | AM197: 546.3 | AN197: -2.8 | AP197: 0.345214795 | AQ197: =AP196-AP197 -> -0.000488281 | AR197: 0.145214795 | AS197: -0.000488281 | AT197: 0.05 | AU197: 0 | AW197: =$AC197+(($AB197*$W$2)*$M$2/($Q$2*$T$2)) -> 66.9003565 | AX197: =AW196-AW197 -> -0.3417967 | AY197: 66.7003565 | AZ197: =AY196-AY197 -> -0.3417967 | BB197: 0.6797240419 | BC197: =BB196-BB197 -> -0.000793456625
AB198: 196 | AC198: 0.25 | AD198: 0.05 | AF198: 353.05 | AG198: -1.8 | AI198: 196.25 | AJ198: -1 | AK198: 196.05 | AL198: -1 | AM198: 549.1 | AN198: -2.8 | AP198: 0.345703076 | AQ198: -0.000488281 | AR198: 0.145703076 | AS198: -0.000488281 | AT198: 0.05 | AU198: 0 | AW198: 67.2421532 | AX198: -0.3417967 | AY198: 67.0421532 | AZ198: -0.3417967 | BB198: 0.6805174985 | BC198: -0.000793456625
AB199: 197 | AC199: 0.25 | AD199: 0.05 | AF199: 354.85 | AG199: -1.8 | AI199: 197.25 | AJ199: -1 | AK199: 197.05 | AL199: -1 | AM199: 551.9 | AN199: -2.8 | AP199: 0.346191357 | AQ199: -0.000488281 | AR199: 0.146191357 | AS199: -0.000488281 | AT199: 0.05 | AU199: 0 | AW199: 67.5839499 | AX199: -0.3417967 | AY199: 67.3839499 | AZ199: -0.3417967 | BB199: 0.6813109551 | BC199: -0.000793456625
AB200: 198 | AC200: 0.25 | AD200: 0.05 | AF200: 356.65 | AG200: -1.8 | AI200: 198.25 | AJ200: -1 | AK200: 198.05 | AL200: -1 | AM200: 554.7 | AN200: -2.8 | AP200: 0.346679638 | AQ200: -0.000488281 | AR200: 0.146679638 | AS200: -0.000488281 | AT200: 0.05 | AU200: 0 | AW200: 67.9257466 | AX200: -0.3417967 | AY200: 67.7257466 | AZ200: -0.3417967 | BB200: 0.6821044118 | BC200: -0.000793456625
... 925 more rows

Sheet Graph (hidden)
